Workbook

Sheet גיליון1
A1: =[1]הערות!A1 -> V2.01 | B1: =[1]הערות!C2 -> הראל חברה לביטוח בע"מ | BB1: 'נספחים ב וג'!$
B2: דו"ח חודשי , שיעורי ההשקעות ורכוש קבוע מסך כל ההתחייבויות לתקופה שנסתיימה ביום - | L2: =[1]הערות!C4 -> 31,03,24 | AI2: =AJ2-1 -> 50 | AJ2: 51 | AK2: 52 | AL2: 53 | AM2: 54 | AN2: 55 | AO2: 56 | AP2: 57 | AQ2: 58 | AR2: 59 | AS2: 60 | AT2: 61 | AU2: 62 | AV2: 63 | AW2: 64 | AX2: 65 | AY2: 66 | AZ2: 67 | BA2: =BB2-1 -> 68 | BB2: 69 | BC2: =BB2+1 -> 70 | BD2: =BC2+1 -> 71 | BE2: 72 | BF2: 73 | BG2: 74 | BH2: 75 | BI2: 76 | BJ2: 77 | BK2: 78 | BL2: 79 | BM2: 80 | BN2: 81 | BO2: 82 | BP2: 83 | BQ2: 84 | BR2: 85 | BS2: 86 | BT2: 87 | BU2: 88 | BV2: 89 | BW2: 90 | BX2: 91 | BY2: 92 | BZ2: 93 | CA2: 94 | CB2: 95 | CC2: 96 | CD2: 97 | CE2: 98 | CF2: 99
B3: =CONCATENATE([1]הערות!$G$103) -> הסכומים באלפי ש"ח | K3: =CONCATENATE(I1) ->  | O3: 1 | P3: =O3+1 -> 2 | Q3: =P3+1 -> 3 | R3: 4 | S3: 5 | T3: 6 | U3: 7 | V3: 8 | W3: 9 | X3: 10 | Y3: 11 | Z3: 12 | AA3: 13 | AB3: 14 | AC3: 15 | AD3: 16 | AE3: 17 | AF3: 18 | AG3: 19 | AH3: 20 | AI3: 21 | AJ3: 22 | AK3: 23 | AL3: 24 | AM3: 25 | AN3: 26 | AO3: 27 | AP3: 28 | AQ3: 29 | AR3: 30 | AS3: 31 | AT3: 32 | AU3: 33 | AV3: 34 | AW3: 35 | AX3: 36 | AY3: 37 | AZ3: 38 | BA3: 39 | BB3: 40 | BC3: 41 | BD3: 42 | BE3: 43 | BF3: 44 | BG3: 45 | BH3: 46 | BI3: 47 | BJ3: 48 | BK3: 49 | BL3: 50 | BM3: 51 | BN3: 52 | BO3: 53 | BP3: 54 | BQ3: 55 | BR3: 56 | BS3: 57 | BT3: 58 | BU3: 59 | BV3: 60 | BW3: 61 | BX3: 62 | BY3: 63 | BZ3: 64 | CA3: 65 | CB3: 66 | CC3: 67 | CD3: 68 | CE3: 69 | CF3: 70
J6: סה"כ משתתף ברווחים | K6: ביטוח חיים
K7: 10 | L7: 11 | M7: 12 | N7: 13
I8: חזרה | K8: ='[1]נספחים ב וג'!$B$10 -> קרן ח' | L8: ='[1]נספחים ב וג'!$B$11 -> קרן ט' | M8: ='[1]נספחים ב וג'!$B$12 -> קרן י' | N8: ='[1]נספחים ב וג'!$B$13 -> קרן י' פוליסות שהונפקו לאחר 1.1.04 | O8: ='[1]נספחים ב וג'!$C$30 -> הראל-מסלול כללי | P8: ='[1]נספחים ב וג'!$C$31 -> הראל-מסלול אג"ח ללא מניות | Q8: ='[1]נספחים ב וג'!$C$32 -> הראל-מסלול אג"ח עד 20% במניות | R8: ='[1]נספחים ב וג'!$C$33 -> הראל-מסלול אג"ח עד 10% במניות | S8: ='[1]נספחים ב וג'!$C$34 -> הראל-מסלול מניות | T8: ='[1]נספחים ב וג'!$C$35 -> הראל-מסלול שקלי טווח קצר | U8: ='[1]נספחים ב וג'!$C$36 -> הראל-מסלול חו"ל | V8: ='[1]נספחים ב וג'!$C$37 -> הראל - מסלול אג"ח מדינת ישראל | W8: ='[1]נספחים ב וג'!$C$38 -> הראל - מסלול אג"ח קונצרני | X8: ='[1]נספחים ב וג'!$C$39 -> הראל-מסלול משתתף ברווחים שקלי טווח קצר | Y8: ='[1]נספחים ב וג'!$C$40 -> הראל-מסלול משתתף ברווחים כללי ללא מניות | Z8: ='[1]נספחים ב וג'!$C$41 -> הראל-מסלול משתתף ברווחים לפחות 75% מניות | AA8: ='[1]נספחים ב וג'!$C$42 -> הראל- אג"ח חו"ל | AB8: ='[1]נספחים ב וג'!$C$43 -> הראל-מסלול פאסיבי - כללי | AC8: ='[1]נספחים ב וג'!$C$44 -> הראל-מסלול לבני 50 ומטה | AD8: ='[1]נספחים ב וג'!$C$45 -> הראל-מסלול לבני 50 עד 60 | AE8: ='[1]נספחים ב וג'!$C$46 -> הראל-מסלול לבני 60 ומעלה | AF8: ='[1]נספחים ב וג'!$C$47 -> הראל-מסלול בסיסי למקבלי קצבה | AG8: ='[1]נספחים ב וג'!$C$48 -> הראל-מסלול אג"ח עד 20% במניות למקבלי קצבה | AH8: ='[1]נספחים ב וג'!$C$49 -> הראל חברה לביטוח בע"מ מדרגות עד 50 | AI8: הראל מסלול לגילאי 50 עד 60 | AJ8: הראל מסלול לגילאי 60 ומעלה | AK8: הראל מסלול בסיסי למקבלי קצבה | AL8: הראל מסלול אג"ח עד 20% במניות למקבלי קצבה | AM8: הראל מסלול הוני ללא אג"ח | AN8: הראל מחקה מדד ממשלתי שקלי ריבית קבועה | AO8: הראל מחקה מדד S&P 500 | AP8: הראל מחקה מדד ממשלתי צמוד 5-10 | AQ8: הראל מחקה מדד תל בונד 60 | AR8: הראל מחקה מדד ת"א 35 | AS8: הראל מסלול עוקב מדדים גמיש | AT8: הראל מסלול משולב סחיר | AU8: הראל מסלול קיימות | AV8: הראל ביטוח פאסיבי מדדי מניות | AW8: =INDIRECT(CONCATENATE($BB$1,"C$",AW$2)) ->  | BB8: =INDIRECT(CONCATENATE($BB$1,"C$",BB$2)) ->  | BC8: =INDIRECT(CONCATENATE($BB$1,"C$",BC$2)) ->  | CG8: אחר
A9: שורה | K9: =IF('[1]נספחים ב וג'!$N$10=0,0,CONCATENATE(VLOOKUP($B$1,[1]הערות!$D$89:$F$111,3,0),"0",K7)) -> 259010 | L9: =IF('[1]נספחים ב וג'!$N$11=0,0,CONCATENATE(VLOOKUP($B$1,[1]הערות!$D$89:$F$111,3,0),"0",L7)) -> 259011 | M9: =IF('[1]נספחים ב וג'!$N$12=0,0,CONCATENATE(VLOOKUP($B$1,[1]הערות!$D$89:$F$111,3,0),"0",M7)) -> 259012 | N9: =IF('[1]נספחים ב וג'!$N$13=0,0,CONCATENATE(VLOOKUP($B$1,[1]הערות!$D$89:$F$111,3,0),"0",N7)) -> 259013 | O9: ='[1]נספחים ב וג'!$B$30 -> 88 | P9: ='[1]נספחים ב וג'!$B$31 -> 89 | Q9: ='[1]נספחים ב וג'!$B$32 -> 90 | R9: ='[1]נספחים ב וג'!$B$33 -> 91 | S9: ='[1]נספחים ב וג'!$B$34 -> 92 | T9: ='[1]נספחים ב וג'!$B$35 -> 93 | U9: ='[1]נספחים ב וג'!$B$36 -> 163 | V9: ='[1]נספחים ב וג'!$B$37 -> 177 | W9: ='[1]נספחים ב וג'!$B$38 -> 178 | X9: ='[1]נספחים ב וג'!$B$39 -> 195 | Y9: ='[1]נספחים ב וג'!$B$40 -> 196 | Z9: ='[1]נספחים ב וג'!$B$41 -> 197 | AA9: ='[1]נספחים ב וג'!$B$42 -> 8592 | AB9: ='[1]נספחים ב וג'!$B$43 -> 9561 | AC9: ='[1]נספחים ב וג'!$B$44 -> 9562 | AD9: ='[1]נספחים ב וג'!$B$45 -> 9563 | AE9: ='[1]נספחים ב וג'!$B$46 -> 9564 | AF9: ='[1]נספחים ב וג'!$B$47 -> 9565 | AG9: ='[1]נספחים ב וג'!$B$48 -> 9566 | AH9: ='[1]נספחים ב וג'!$B$49 -> 11400 | AI9: 11401 | AJ9: 11402 | AK9: 11403 | AL9: 11404 | AM9: 12981 | AN9: 13433 | AO9: 13434 | AP9: 13435 | AQ9: 13436 | AR9: 13437 | AS9: 14414 | AT9: 14210 | AU9: 14211 | AV9: 15029 | AW9: =INDIRECT(CONCATENATE($BB$1,"b$",AW$2)) ->  | BB9: =INDIRECT(CONCATENATE($BB$1,"b$",BB$2)) ->  | BC9: =INDIRECT(CONCATENATE($BB$1,"b$",BC$2)) -> 
A10: 10 | B10: 1. | C10: השקעות | J10: 81355830.9 | K10: 3404.256194 | L10: 938930.6762 | M10: 24465870.37 | N10: 850943.1887 | O10: 21482970.86 | P10: 991780.999 | Q10: 5109688.68 | R10: 1100592.27 | S10: 2961290.101 | T10: 812991.7902 | U10: 3012117.29 | V10: 193898.33 | W10: 352048.42 | X10: 54317.20697 | Y10: 61147.30414 | Z10: 187323.4367 | AA10: 132965.8 | AB10: 419824.09 | AC10: 2734677.1 | AD10: 1606044.745 | AE10: 1813981.701 | AF10: 2389164.98 | AG10: 1013118.463 | AH10: 30977.95522 | AI10: 146111.4895 | AJ10: 238429.9302 | AK10: 1606076.053 | AL10: 531398.1017 | AM10: 202864.76 | AN10: 36542.32 | AO10: 1491977.68 | AP10: 44279.93 | AQ10: 144468.23 | AR10: 163774.46 | AS10: 48867.84 | AT10: 7524.14 | AU10: 11600.41 | AV10: 32059.13 | AW10: 0 | AX10: 0 | AY10: 0 | AZ10: 0 | BA10: 0 | BB10: 0 | BC10: 0 | BD10: 0 | BE10: 0 | BF10: 0 | BG10: 0 | BH10: 0 | BI10: 0 | BJ10: 0 | BK10: 0 | BL10: 0 | BM10: 0 | BN10: 0 | BO10: 0 | BP10: 0 | BQ10: 0 | BR10: 0 | BS10: 0 | BT10: 0 | BU10: 0 | BV10: 0 | BW10: 0 | BX10: 0 | BY10: 0 | BZ10: 0 | CA10: 0 | CB10: 0 | CC10: 0 | CD10: 0 | CE10: 0 | CF10: 0 | CG10: 3929786.415
A11: =A10+1 -> 11 | C11: א. | D11: מזומנים ושווי מזומנים | J11: 7105413.68 | K11: 218.2125488 | L11: 79145.88295 | M11: 2334509.621 | N11: 81196.17373 | O11: 1902973.7 | P11: 93982.76308 | Q11: 266302.88 | R11: 69542.09 | S11: 344001.4326 | T11: 90063.74541 | U11: 466492.25 | V11: 14440.53 | W11: 29240.39 | X11: 6017.294589 | Y11: 5794.416916 | Z11: 21760.62743 | AA11: 11373.35 | AB11: 14410.4 | AC11: 158589.5744 | AD11: 113480.024 | AE11: 93844.11982 | AF11: 133159.6981 | AG11: 63243.59433 | AH11: 1796.475618 | AI11: 10323.95603 | AJ11: 12334.88018 | AK11: 89514.37185 | AL11: 33172.35567 | AM11: 24624.79 | AN11: 441.79 | AO11: 189990.47 | AP11: 532.79 | AQ11: 1740.23 | AR11: 1479.09 | AS11: 2156.59 | AT11: 1163.73 | AU11: 1655.08 | AV11: 1703.11 | AW11: 0 | AX11: 0 | AY11: 0 | AZ11: 0 | BA11: 0 | BB11: 0 | BC11: 0 | BD11: 0 | BE11: 0 | BF11: 0 | BG11: 0 | BH11: 0 | BI11: 0 | BJ11: 0 | BK11: 0 | BL11: 0 | BM11: 0 | BN11: 0 | BO11: 0 | BP11: 0 | BQ11: 0 | BR11: 0 | BS11: 0 | BT11: 0 | BU11: 0 | BV11: 0 | BW11: 0 | BX11: 0 | BY11: 0 | BZ11: 0 | CA11: 0 | CB11: 0 | CC11: 0 | CD11: 0 | CE11: 0 | CF11: 0 | CG11: 339001.1997
A12: 12 | D12: (1 | E12: בישראל | J12: 6858202.077 | K12: 210.3455366 | L12: 76292.51073 | M12: 2250345.737 | N12: 78268.8843 | O12: 1829283.266 | P12: 93982.76308 | Q12: 262743.0287 | R12: 69536.81878 | S12: 321169.0135 | T12: 90063.74541 | U12: 466492.25 | V12: 14440.53 | W12: 29240.21929 | X12: 6017.294589 | Y12: 5794.416916 | Z12: 21760.62743 | AA12: -3326.817576 | AB12: 14410.4 | AC12: 147342.057 | AD12: 107609.7762 | AE12: 90032.30377 | AF12: 119638.6275 | AG12: 61243.42705 | AH12: 1796.475618 | AI12: 10323.95603 | AJ12: 12334.88018 | AK12: 89514.37185 | AL12: 33172.35567 | AM12: 23860.37616 | AN12: 441.79 | AO12: 189990.47 | AP12: 532.79 | AQ12: 1740.23 | AR12: 1479.09 | AS12: 2156.59 | AT12: 1122.242545 | AU12: 1655.08 | AV12: 1703.11 | AW12: 0 | AX12: 0 | AY12: 0 | AZ12: 0 | BA12: 0 | BB12: 0 | BC12: 0 | BD12: 0 | BE12: 0 | BF12: 0 | BG12: 0 | BH12: 0 | BI12: 0 | BJ12: 0 | BK12: 0 | BL12: 0 | BM12: 0 | BN12: 0 | BO12: 0 | BP12: 0 | BQ12: 0 | BR12: 0 | BS12: 0 | BT12: 0 | BU12: 0 | BV12: 0 | BW12: 0 | BX12: 0 | BY12: 0 | BZ12: 0 | CA12: 0 | CB12: 0 | CC12: 0 | CD12: 0 | CE12: 0 | CF12: 0 | CG12: 333787.0438
A13: 13 | E13: א) | F13: יתרות מזומנים ועו"ש בשקלים חדשים | J13: 4624815.458 | K13: 146.4592444 | L13: 53120.89649 | M13: 1566869.17 | N13: 54497.00451 | O13: 1297269.87 | P13: 77747.59666 | Q13: 213796.99 | R13: 53318.25 | S13: 219219.2649 | T13: 65375.70088 | U13: 186417.65 | V13: 13160.68 | W13: 25092.61 | X13: 4367.84912 | Y13: 4793.453337 | Z13: 13867.23512 | AA13: 6081.82 | AB13: 13098.91 | AC13: 92205.0272 | AD13: 77328.42133 | AE13: 66588.41261 | AF13: 82758.14572 | AG13: 50472.06938 | AH13: 1044.482803 | AI13: 7035.028668 | AJ13: 8752.387392 | AK13: 55632.77428 | AL13: 26473.47062 | AM13: 15326.64 | AN13: 441.79 | AO13: 15269.98 | AP13: 532.79 | AQ13: 1740.23 | AR13: 1479.09 | AS13: 2156.59 | AT13: 778.42 | AU13: 1375.96 | AV13: 1686.7 | CG13: 247495.6385
A14: 14 | E14: ב) | F14: יתרות מזומנים ועו"ש נקובים במט"ח | J14: 1585458.579 | K14: 44.51171121 | L14: 16144.43672 | M14: 476200.9272 | N14: 16562.66176 | O14: 498356.8764 | P14: 12402.24171 | Q14: 31501.9687 | R14: 13063.50878 | S14: 94113.88477 | T14: 2.905855419 | U14: 158742.53 | V14: 0 | W14: 2510.549289 | X14: 0.1941445807 | Y14: 764.6482909 | Z14: 7397.716133 | AA14: -10541.17758 | AB14: 1311.49 | AC14: 51166.00296 | AD14: 26761.57988 | AE14: 19996.71794 | AF14: 31662.33404 | AG14: 7284.817902 | AH14: 707.0097004 | AI14: 2968.712392 | AJ14: 3129.39601 | AK14: 30373.78533 | AL14: 4870.134818 | AM14: 8135.886164 | AN14: 0 | AO14: 6466.71 | AP14: 0 | AQ14: 0 | AR14: 0 | AS14: 0 | AT14: 282.8225446 | AU14: 279.12 | AV14: 16.41 | CG14: 72777.26579
A15: 15 | E15: ג) | F15: פח"ק/פר"י | J15: 385986.116 | K15: 19.3402574 | L15: 7014.728334 | M15: 206908.4351 | N15: 7196.44635 | O15: 33332.03 | P15: 3832.924711 | Q15: 17434.48 | R15: 3155.06 | S15: 7706.873422 | T15: 24685.13868 | U15: 28699.86 | V15: 1279.85 | W15: 1637.06 | X15: 1649.251324 | Y15: 236.3152887 | Z15: 487.5165778 | AA15: 1132.54 | AC15: 3916.741818 | AD15: 3494.119102 | AE15: 3431.670851 | AF15: 5180.174588 | AG15: 3480.387007 | AH15: 44.36818249 | AI15: 317.8808984 | AJ15: 451.0591486 | AK15: 3482.285412 | AL15: 1825.522993 | AM15: 393.36 | AT15: 61 | CG15: 13499.69598
A16: 16 | E16: ד) | F16: פק"מ לתקופה של עד שלושה חודשים | J16: 169309.7136 | K16: 0.03432356634 | L16: 12.44918764 | M16: 367.2048023 | N16: 12.77168646 | O16: 324.49 | P16: 0 | Q16: 9.59 | R16: 0 | S16: 128.9904056 | T16: 0 | W16: 0 | X16: 0 | Y16: 0 | Z16: 8.159594387 | AC16: 54.28506802 | AD16: 25.65592698 | AE16: 15.50236734 | AF16: 37.97317232 | AG16: 6.152767409 | AH16: 0.6149319809 | AI16: 2.334073019 | AJ16: 2.037632662 | AK16: 25.52682768 | AL16: 3.227232591 | AM16: 4.49 | AO16: 168253.78 | CG16: 14.44355028
A17: 17 | E17: ה) | F17: פיקדון צמוד מדד עד שלושה חודשים | J17: 0 | K17: 0 | L17: 0 | M17: 0 | N17: 0 | P17: 0 | S17: 0 | T17: 0 | X17: 0 | Y17: 0 | Z17: 0 | AC17: 0 | AD17: 0 | AE17: 0 | AF17: 0 | AG17: 0 | AH17: 0 | AI17: 0 | AJ17: 0 | AK17: 0 | AL17: 0 | CG17: 0
A18: 18 | E18: ו) | F18: פיקדון צמוד מט"ח עד שלושה חודשים (פצ"מ) | J18: 0 | K18: 0 | L18: 0 | M18: 0 | N18: 0 | P18: 0 | S18: 0 | T18: 0 | X18: 0 | Y18: 0 | Z18: 0 | AC18: 0 | AD18: 0 | AE18: 0 | AF18: 0 | AG18: 0 | AH18: 0 | AI18: 0 | AJ18: 0 | AK18: 0 | AL18: 0 | CG18: 0
A19: 19 | E19: ז) | F19: פיקדונות במט"ח עד שלושה חודשים | J19: 92632.21 | K19: 0 | L19: 0 | M19: 0 | N19: 0 | P19: 0 | S19: 0 | T19: 0 | U19: 92632.21 | X19: 0 | Y19: 0 | Z19: 0 | AC19: 0 | AD19: 0 | AE19: 0 | AF19: 0 | AG19: 0 | AH19: 0 | AI19: 0 | AJ19: 0 | AK19: 0 | AL19: 0 | CG19: 0
A20: 20 | D20: (2 | E20: בחו"ל | J20: 247211.6023 | K20: 7.867012179 | L20: 2853.372222 | M20: 84163.8839 | N20: 2927.289431 | O20: 73690.43365 | P20: 0 | Q20: 3559.851303 | R20: 5.271218544 | S20: 22832.4191 | T20: 0 | U20: 0 | V20: 0 | W20: 0.1707112006 | X20: 0 | Y20: 0 | Z20: 0 | AA20: 14700.16758 | AB20: 0 | AC20: 11247.51734 | AD20: 5870.247723 | AE20: 3811.816046 | AF20: 13521.07062 | AG20: 2000.16728 | AH20: 0 | AI20: 0 | AJ20: 0 | AK20: 0 | AL20: 0 | AM20: 764.4138363 | AN20: 0 | AO20: 0 | AP20: 0 | AQ20: 0 | AR20: 0 | AS20: 0 | AT20: 41.48745544 | AU20: 0 | AV20: 0 | AW20: 0 | AX20: 0 | AY20: 0 | AZ20: 0 | BA20: 0 | BB20: 0 | BC20: 0 | BD20: 0 | BE20: 0 | BF20: 0 | BG20: 0 | BH20: 0 | BI20: 0 | BJ20: 0 | BK20: 0 | BL20: 0 | BM20: 0 | BN20: 0 | BO20: 0 | BP20: 0 | BQ20: 0 | BR20: 0 | BS20: 0 | BT20: 0 | BU20: 0 | BV20: 0 | BW20: 0 | BX20: 0 | BY20: 0 | BZ20: 0 | CA20: 0 | CB20: 0 | CC20: 0 | CD20: 0 | CE20: 0 | CF20: 0 | CG20: 5214.155834
A21: 21 | E21: א) | F21: יתרות מזומנים ועו"ש נקובים במט"ח | J21: 247211.6023 | K21: 7.867012179 | L21: 2853.372222 | M21: 84163.8839 | N21: 2927.289431 | O21: 73690.43365 | Q21: 3559.851303 | R21: 5.271218544 | S21: 22832.4191 | W21: 0.1707112006 | AA21: 14700.16758 | AC21: 11247.51734 | AD21: 5870.247723 | AE21: 3811.816046 | AF21: 13521.07062 | AG21: 2000.16728 | AM21: 764.4138363 | AT21: 41.48745544 | CG21: 5214.155834
A22: 22 | E22: ב) | F22: פיקדונות במט"ח עד שלושה חודשים | J22: 0 | K22: 0 | L22: 0 | M22: 0 | N22: 0 | P22: 0 | S22: 0 | T22: 0 | X22: 0 | Y22: 0 | Z22: 0 | AC22: 0 | AD22: 0 | AE22: 0 | AF22: 0 | AG22: 0 | AH22: 0 | AI22: 0 | AJ22: 0 | AK22: 0 | AL22: 0 | CG22: 0
A23: 23 | AC23: 0 | AD23: 0 | AE23: 0 | AF23: 0 | AG23: 0 | AH23: 0 | AI23: 0 | AJ23: 0 | AK23: 0 | AL23: 0 | CG23: 0
A24: 24 | C24: ב. | D24: ניירות ערך (למעט בחברות מוחזקות) | J24: 61802663.98 | K24: 2719.793365 | L24: 696532.6288 | M24: 17361929.64 | N24: 603862.2598 | O24: 16077704.47 | P24: 662245.7923 | Q24: 4059809.26 | R24: 888635.01 | S24: 2593978.068 | T24: 721343.4751 | U24: 2537023.41 | V24: 179684.54 | W24: 250827.11 | X24: 48194.04489 | Y24: 40830.12773 | Z24: 164088.2419 | AA24: 120323.87 | AB24: 401765.4 | AC24: 2253662.882 | AD24: 1282357.843 | AE24: 1394368.146 | AF24: 1869701.937 | AG24: 785937.8544 | AH24: 25529.10829 | AI24: 116663.7574 | AJ24: 183275.884 | AK24: 1256875.743 | AL24: 412237.9556 | AM24: 176511.96 | AN24: 35983.73 | AO24: 1295603.16 | AP24: 43478.32 | AQ24: 142197.24 | AR24: 162007.07 | AS24: 45852.73 | AT24: 6251.03 | AU24: 9981.04 | AV24: 29295.56 | AW24: 0 | AX24: 0 | AY24: 0 | AZ24: 0 | BA24: 0 | BB24: 0 | BC24: 0 | BD24: 0 | BE24: 0 | BF24: 0 | BG24: 0 | BH24: 0 | BI24: 0 | BJ24: 0 | BK24: 0 | BL24: 0 | BM24: 0 | BN24: 0 | BO24: 0 | BP24: 0 | BQ24: 0 | BR24: 0 | BS24: 0 | BT24: 0 | BU24: 0 | BV24: 0 | BW24: 0 | BX24: 0 | BY24: 0 | BZ24: 0 | CA24: 0 | CB24: 0 | CC24: 0 | CD24: 0 | CE24: 0 | CF24: 0 | CG24: 2863393.888
A25: 25 | D25: (1 | E25: אגרות חוב ממשלתיות: | J25: 14759682.18 | K25: 1451.634988 | L25: 236570.4723 | M25: 3794754.197 | N25: 131984.6867 | O25: 3294726.36 | P25: 335848.5316 | Q25: 1218512.59 | R25: 249845.9 | S25: 190882.9084 | T25: 719336.457 | U25: 632285.89 | V25: 179578.48 | W25: 1622.89 | X25: 48059.95299 | Y25: 20706.41838 | Z25: 12074.75161 | AA25: 21846.56 | AB25: 0 | AC25: 514300.739 | AD25: 338374.4627 | AE25: 486320.7885 | AF25: 426720.8808 | AG25: 279374.1509 | AH25: 5825.910951 | AI25: 30783.94728 | AJ25: 63922.05147 | AK25: 286855.9492 | AL25: 146536.5591 | AM25: 10278.16 | AN25: 0 | AO25: 4003.5 | AP25: 0 | AQ25: 0 | AR25: 0 | AS25: 0 | AT25: 717.79 | AU25: 0 | AV25: 0 | AW25: 0 | AX25: 0 | AY25: 0 | AZ25: 0 | BA25: 0 | BB25: 0 | BC25: 0 | BD25: 0 | BE25: 0 | BF25: 0 | BG25: 0 | BH25: 0 | BI25: 0 | BJ25: 0 | BK25: 0 | BL25: 0 | BM25: 0 | BN25: 0 | BO25: 0 | BP25: 0 | BQ25: 0 | BR25: 0 | BS25: 0 | BT25: 0 | BU25: 0 | BV25: 0 | BW25: 0 | BX25: 0 | BY25: 0 | BZ25: 0 | CA25: 0 | CB25: 0 | CC25: 0 | CD25: 0 | CE25: 0 | CF25: 0 | CG25: 1075578.613
A26: 26 | E26: א) | F26: בישראל | J26: 14581729.71 | K26: 1450.379662 | L26: 236115.1647 | M26: 3781324.312 | N26: 131517.5843 | O26: 3280906.13 | P26: 334744.1794 | Q26: 1212169.86 | R26: 248577.42 | S26: 190882.9084 | T26: 719336.457 | U26: 519001.99 | V26: 179578.48 | W26: 287.39 | X26: 48059.95299 | Y26: 20638.33061 | Z26: 12074.75161 | AA26: 9219.48 | AB26: 0 | AC26: 513186.936 | AD26: 336878.5178 | AE26: 484777.2247 | AF26: 424955.8579 | AG26: 278196.2174 | AH26: 5813.293981 | AI26: 30647.85223 | AJ26: 63719.16529 | AK26: 285669.4421 | AL26: 145918.7126 | AM26: 10278.16 | AN26: 0 | AO26: 4003.5 | AP26: 0 | AQ26: 0 | AR26: 0 | AS26: 0 | AT26: 651.03 | AU26: 0 | AV26: 0 | AW26: 0 | AX26: 0 | AY26: 0 | AZ26: 0 | BA26: 0 | BB26: 0 | BC26: 0 | BD26: 0 | BE26: 0 | BF26: 0 | BG26: 0 | BH26: 0 | BI26: 0 | BJ26: 0 | BK26: 0 | BL26: 0 | BM26: 0 | BN26: 0 | BO26: 0 | BP26: 0 | BQ26: 0 | BR26: 0 | BS26: 0 | BT26: 0 | BU26: 0 | BV26: 0 | BW26: 0 | BX26: 0 | BY26: 0 | BZ26: 0 | CA26: 0 | CB26: 0 | CC26: 0 | CD26: 0 | CE26: 0 | CF26: 0 | CG26: 1071149.032
A27: 27 | F27: (1) | G27: סחיר | J27: 14472714.24 | K27: 353.4499959 | L27: 128196.6237 | M27: 3781324.312 | N27: 131517.5843 | O27: 3280906.13 | P27: 334744.1794 | Q27: 1212169.86 | R27: 248577.42 | S27: 190882.9084 | T27: 719336.457 | U27: 519001.99 | V27: 179578.48 | W27: 287.39 | X27: 48059.95299 | Y27: 20638.33061 | Z27: 12074.75161 | AA27: 9219.48 | AB27: 0 | AC27: 513186.936 | AD27: 336878.5178 | AE27: 484777.2247 | AF27: 424955.8579 | AG27: 278196.2174 | AH27: 5813.293981 | AI27: 30647.85223 | AJ27: 63719.16529 | AK27: 285669.4421 | AL27: 145918.7126 | AM27: 10278.16 | AN27: 0 | AO27: 4003.5 | AP27: 0 | AQ27: 0 | AR27: 0 | AS27: 0 | AT27: 651.03 | AU27: 0 | AV27: 0 | AW27: 0 | AX27: 0 | AY27: 0 | AZ27: 0 | BA27: 0 | BB27: 0 | BC27: 0 | BD27: 0 | BE27: 0 | BF27: 0 | BG27: 0 | BH27: 0 | BI27: 0 | BJ27: 0 | BK27: 0 | BL27: 0 | BM27: 0 | BN27: 0 | BO27: 0 | BP27: 0 | BQ27: 0 | BR27: 0 | BS27: 0 | BT27: 0 | BU27: 0 | BV27: 0 | BW27: 0 | BX27: 0 | BY27: 0 | BZ27: 0 | CA27: 0 | CB27: 0 | CC27: 0 | CD27: 0 | CE27: 0 | CF27: 0 | CG27: 1071149.032
A28: 28 | G28: (א) | H28: צמוד מדד | J28: 8533909.112 | K28: 201.2367413 | L28: 72988.7427 | M28: 2152896.849 | N28: 74879.53146 | O28: 2876299.96 | P28: 117061.8916 | Q28: 528476.8 | R28: 180780.59 | S28: 0 | T28: 0 | V28: 82863.47 | W28: 195.5 | X28: 0 | Y28: 7217.3384 | Z28: 0 | AC28: 481753.6173 | AD28: 231948.2788 | AE28: 339022.217 | AF28: 255739.4904 | AG28: 152016.7195 | AH28: 5457.222713 | AI28: 21101.72124 | AJ28: 44561.11299 | AK28: 171916.5796 | AL28: 79735.39045 | CG28: 656794.8523
A29: 29 | G29: (ג) | H29: לא צמוד בריבית קבועה | J29: 3177940.029 | K29: 106.5527461 | L29: 38646.77454 | M29: 1139936.325 | N29: 39647.92738 | O29: 261343.7 | P29: 165656.1117 | Q29: 490375.81 | R29: 60234.88 | S29: 4414.566137 | T29: 16614.68767 | U29: 19762.03 | V29: 68690.03 | W29: 46.05 | X29: 1110.052328 | Y29: 10213.36833 | Z29: 279.2538631 | AA29: 1056.5 | AC29: 18956.2271 | AD29: 81626.51781 | AE29: 138840.0415 | AF29: 131300.5556 | AG29: 88508.9629 | AH29: 214.7329036 | AI29: 7426.052193 | AJ29: 18249.14848 | AK29: 88264.59445 | AL29: 46424.4771 | AM29: 237.4 | AT29: 15.04 | CG29: 239741.6595
A30: 30 | G30: (ד) | H30: לא צמוד בריבית משתנה | J30: 413213.5124 | K30: 16.65618268 | L30: 6041.212075 | M30: 178193.3208 | N30: 6197.710947 | O30: 30620.73 | P30: 30420.04158 | Q30: 60511.31 | R30: 4208.17 | S30: 0.9122908745 | T30: 0 | U30: 1517.43 | V30: 12525.73 | W30: 9 | X30: 0 | Y30: 1875.518422 | Z30: 0.05770912545 | AA30: 164.37 | AC30: 519.4556946 | AD30: 10520.11249 | AE30: 741.9659268 | AF30: 19370.58164 | AG30: 5587.309718 | AH30: 5.884305407 | AI30: 957.0775102 | AJ30: 97.52407317 | AK30: 13021.54836 | AL30: 2930.640282 | CG30: 27159.24242
A31: 31 | G31: (ה) | H31: צמוד מט"ח | J31: 0 | K31: 0 | L31: 0 | M31: 0 | N31: 0 | P31: 0 | S31: 0 | T31: 0 | X31: 0 | Y31: 0 | Z31: 0 | AC31: 0 | AD31: 0 | AE31: 0 | AF31: 0 | AG31: 0 | AH31: 0 | AI31: 0 | AJ31: 0 | AK31: 0 | AL31: 0 | CG31: 0
A32: 32 | G32: (ו) | H32: מק"מ | J32: 2347651.588 | K32: 29.00432574 | L32: 10519.8944 | M32: 310297.8168 | N32: 10792.41448 | O32: 112641.74 | P32: 21606.13454 | Q32: 132805.94 | R32: 3353.78 | S32: 186467.43 | T32: 702721.7693 | U32: 497722.53 | V32: 15499.25 | W32: 36.84 | X32: 46949.90066 | Y32: 1332.105456 | Z32: 11795.44004 | AA32: 7998.61 | AC32: 11957.63594 | AD32: 12783.60871 | AE32: 6173.00025 | AF32: 18545.23026 | AG32: 32083.22521 | AH32: 135.4540581 | AI32: 1163.00129 | AJ32: 811.3797498 | AK32: 12466.71974 | AL32: 16828.20479 | AM32: 10040.76 | AO32: 4003.5 | AT32: 635.99 | CG32: 147453.2779
A33: 33 | F33: (2) | G33: לא סחיר | J33: 109015.4706 | K33: 1096.929667 | L33: 107918.5409 | M33: 0 | N33: 0 | O33: 0 | P33: 0 | Q33: 0 | R33: 0 | S33: 0 | T33: 0 | U33: 0 | V33: 0 | W33: 0 | X33: 0 | Y33: 0 | Z33: 0 | AA33: 0 | AB33: 0 | AC33: 0 | AD33: 0 | AE33: 0 | AF33: 0 | AG33: 0 | AH33: 0 | AI33: 0 | AJ33: 0 | AK33: 0 | AL33: 0 | AM33: 0 | AN33: 0 | AO33: 0 | AP33: 0 | AQ33: 0 | AR33: 0 | AS33: 0 | AT33: 0 | AU33: 0 | AV33: 0 | AW33: 0 | AX33: 0 | AY33: 0 | AZ33: 0 | BA33: 0 | BB33: 0 | BC33: 0 | BD33: 0 | BE33: 0 | BF33: 0 | BG33: 0 | BH33: 0 | BI33: 0 | BJ33: 0 | BK33: 0 | BL33: 0 | BM33: 0 | BN33: 0 | BO33: 0 | BP33: 0 | BQ33: 0 | BR33: 0 | BS33: 0 | BT33: 0 | BU33: 0 | BV33: 0 | BW33: 0 | BX33: 0 | BY33: 0 | BZ33: 0 | CA33: 0 | CB33: 0 | CC33: 0 | CD33: 0 | CE33: 0 | CF33: 0 | CG33: 0
A34: 34 | G34: (א) | H34: אג"ח מיועדות - הסכמי "חץ" כולל אג"ח של חברת החשמל | J34: 109015.4706 | K34: 1096.929667 | L34: 107918.5409 | M34: 0 | N34: 0 | P34: 0 | S34: 0 | T34: 0 | X34: 0 | Y34: 0 | Z34: 0 | AC34: 0 | AD34: 0 | AE34: 0 | AF34: 0 | AG34: 0 | AH34: 0 | AI34: 0 | AJ34: 0 | AK34: 0 | AL34: 0 | CG34: 0
A35: 35 | G35: (ב) | H35: אג"ח לא סחירות אחרות | J35: 0 | K35: 0 | L35: 0 | M35: 0 | N35: 0 | P35: 0 | S35: 0 | T35: 0 | X35: 0 | Y35: 0 | Z35: 0 | AC35: 0 | AD35: 0 | AE35: 0 | AF35: 0 | AG35: 0 | AH35: 0 | AI35: 0 | AJ35: 0 | AK35: 0 | AL35: 0 | CG35: 0
A36: 36 | E36: ב) | F36: בחו"ל | J36: 177952.4712 | K36: 1.255325449 | L36: 455.307642 | M36: 13429.88455 | N36: 467.1024824 | O36: 13820.23 | P36: 1104.352225 | Q36: 6342.73 | R36: 1268.48 | S36: 0 | T36: 0 | U36: 113283.9 | V36: 0 | W36: 1335.5 | X36: 0 | Y36: 68.08777488 | Z36: 0 | AA36: 12627.08 | AB36: 0 | AC36: 1113.803029 | AD36: 1495.944947 | AE36: 1543.563822 | AF36: 1765.02295 | AG36: 1177.933546 | AH36: 12.61697053 | AI36: 136.0950529 | AJ36: 202.886178 | AK36: 1186.50705 | AL36: 617.8464544 | AM36: 0 | AN36: 0 | AO36: 0 | AP36: 0 | AQ36: 0 | AR36: 0 | AS36: 0 | AT36: 66.76 | AU36: 0 | AV36: 0 | AW36: 0 | AX36: 0 | AY36: 0 | AZ36: 0 | BA36: 0 | BB36: 0 | BC36: 0 | BD36: 0 | BE36: 0 | BF36: 0 | BG36: 0 | BH36: 0 | BI36: 0 | BJ36: 0 | BK36: 0 | BL36: 0 | BM36: 0 | BN36: 0 | BO36: 0 | BP36: 0 | BQ36: 0 | BR36: 0 | BS36: 0 | BT36: 0 | BU36: 0 | BV36: 0 | BW36: 0 | BX36: 0 | BY36: 0 | BZ36: 0 | CA36: 0 | CB36: 0 | CC36: 0 | CD36: 0 | CE36: 0 | CF36: 0 | CG36: 4429.58116
A37: 37 | F37: (1) | G37: סחיר | J37: 177952.4712 | K37: 1.255325449 | L37: 455.307642 | M37: 13429.88455 | N37: 467.1024824 | O37: 13820.23 | P37: 1104.352225 | Q37: 6342.73 | R37: 1268.48 | S37: 0 | T37: 0 | U37: 113283.9 | V37: 0 | W37: 1335.5 | X37: 0 | Y37: 68.08777488 | Z37: 0 | AA37: 12627.08 | AB37: 0 | AC37: 1113.803029 | AD37: 1495.944947 | AE37: 1543.563822 | AF37: 1765.02295 | AG37: 1177.933546 | AH37: 12.61697053 | AI37: 136.0950529 | AJ37: 202.886178 | AK37: 1186.50705 | AL37: 617.8464544 | AM37: 0 | AN37: 0 | AO37: 0 | AP37: 0 | AQ37: 0 | AR37: 0 | AS37: 0 | AT37: 66.76 | AU37: 0 | AV37: 0 | AW37: 0 | AX37: 0 | AY37: 0 | AZ37: 0 | BA37: 0 | BB37: 0 | BC37: 0 | BD37: 0 | BE37: 0 | BF37: 0 | BG37: 0 | BH37: 0 | BI37: 0 | BJ37: 0 | BK37: 0 | BL37: 0 | BM37: 0 | BN37: 0 | BO37: 0 | BP37: 0 | BQ37: 0 | BR37: 0 | BS37: 0 | BT37: 0 | BU37: 0 | BV37: 0 | BW37: 0 | BX37: 0 | BY37: 0 | BZ37: 0 | CA37: 0 | CB37: 0 | CC37: 0 | CD37: 0 | CE37: 0 | CF37: 0 | CG37: 4429.58116
A38: 38 | G38: (א) | H38: ממשלת ישראל שהונפקו בחו"ל | J38: 0 | K38: 0 | L38: 0 | M38: 0 | N38: 0 | P38: 0 | S38: 0 | T38: 0 | X38: 0 | Y38: 0 | Z38: 0 | AC38: 0 | AD38: 0 | AE38: 0 | AF38: 0 | AG38: 0 | AH38: 0 | AI38: 0 | AJ38: 0 | AK38: 0 | AL38: 0 | CG38: 0
A39: 39 | G39: (ב) | H39: שהנפיקה ממשלה זרה | J39: 177952.4712 | K39: 1.255325449 | L39: 455.307642 | M39: 13429.88455 | N39: 467.1024824 | O39: 13820.23 | P39: 1104.352225 | Q39: 6342.73 | R39: 1268.48 | S39: 0 | T39: 0 | U39: 113283.9 | W39: 1335.5 | X39: 0 | Y39: 68.08777488 | Z39: 0 | AA39: 12627.08 | AC39: 1113.803029 | AD39: 1495.944947 | AE39: 1543.563822 | AF39: 1765.02295 | AG39: 1177.933546 | AH39: 12.61697053 | AI39: 136.0950529 | AJ39: 202.886178 | AK39: 1186.50705 | AL39: 617.8464544 | AT39: 66.76 | CG39: 4429.58116
A40: 40 | F40: (2) | G40: לא סחיר | J40: 0 | K40: 0 | L40: 0 | M40: 0 | N40: 0 | O40: 0 | P40: 0 | Q40: 0 | R40: 0 | S40: 0 | T40: 0 | U40: 0 | V40: 0 | W40: 0 | X40: 0 | Y40: 0 | Z40: 0 | AA40: 0 | AB40: 0 | AC40: 0 | AD40: 0 | AE40: 0 | AF40: 0 | AG40: 0 | AH40: 0 | AI40: 0 | AJ40: 0 | AK40: 0 | AL40: 0 | AM40: 0 | AN40: 0 | AO40: 0 | AP40: 0 | AQ40: 0 | AR40: 0 | AS40: 0 | AT40: 0 | AU40: 0 | AV40: 0 | AW40: 0 | AX40: 0 | AY40: 0 | AZ40: 0 | BA40: 0 | BB40: 0 | BC40: 0 | BD40: 0 | BE40: 0 | BF40: 0 | BG40: 0 | BH40: 0 | BI40: 0 | BJ40: 0 | BK40: 0 | BL40: 0 | BM40: 0 | BN40: 0 | BO40: 0 | BP40: 0 | BQ40: 0 | BR40: 0 | BS40: 0 | BT40: 0 | BU40: 0 | BV40: 0 | BW40: 0 | BX40: 0 | BY40: 0 | BZ40: 0 | CA40: 0 | CB40: 0 | CC40: 0 | CD40: 0 | CE40: 0 | CF40: 0 | CG40: 0
A41: 41 | G41: (א) | H41: ממשלת ישראל שהונפקו בחו"ל | J41: 0 | K41: 0 | L41: 0 | M41: 0 | N41: 0 | P41: 0 | S41: 0 | T41: 0 | X41: 0 | Y41: 0 | Z41: 0 | AC41: 0 | AD41: 0 | AE41: 0 | AF41: 0 | AG41: 0 | AH41: 0 | AI41: 0 | AJ41: 0 | AK41: 0 | AL41: 0 | CG41: 0
A42: 42 | G42: (ב) | H42: שהנפיקה ממשלה זרה | J42: 0 | K42: 0 | L42: 0 | M42: 0 | N42: 0 | P42: 0 | S42: 0 | T42: 0 | X42: 0 | Y42: 0 | Z42: 0 | AC42: 0 | AD42: 0 | AE42: 0 | AF42: 0 | AG42: 0 | AH42: 0 | AI42: 0 | AJ42: 0 | AK42: 0 | AL42: 0 | CG42: 0
A43: 43 | AC43: 0 | AD43: 0 | AE43: 0 | AF43: 0 | AG43: 0 | AH43: 0 | AI43: 0 | AJ43: 0 | AK43: 0 | AL43: 0 | CG43: 0
A44: 44 | D44: (2 | E44: תעודות חוב מסחריות: | J44: 0 | K44: 0 | L44: 0 | M44: 0 | N44: 0 | O44: 0 | P44: 0 | Q44: 0 | R44: 0 | S44: 0 | T44: 0 | U44: 0 | V44: 0 | W44: 0 | X44: 0 | Y44: 0 | Z44: 0 | AA44: 0 | AB44: 0 | AC44: 0 | AD44: 0 | AE44: 0 | AF44: 0 | AG44: 0 | AH44: 0 | AI44: 0 | AJ44: 0 | AK44: 0 | AL44: 0 | AM44: 0 | AN44: 0 | AO44: 0 | AP44: 0 | AQ44: 0 | AR44: 0 | AS44: 0 | AT44: 0 | AU44: 0 | AV44: 0 | AW44: 0 | AX44: 0 | AY44: 0 | AZ44: 0 | BA44: 0 | BB44: 0 | BC44: 0 | BD44: 0 | BE44: 0 | BF44: 0 | BG44: 0 | BH44: 0 | BI44: 0 | BJ44: 0 | BK44: 0 | BL44: 0 | BM44: 0 | BN44: 0 | BO44: 0 | BP44: 0 | BQ44: 0 | BR44: 0 | BS44: 0 | BT44: 0 | BU44: 0 | BV44: 0 | BW44: 0 | BX44: 0 | BY44: 0 | BZ44: 0 | CA44: 0 | CB44: 0 | CC44: 0 | CD44: 0 | CE44: 0 | CF44: 0 | CG44: 0
A45: 45 | E45: א) | F45: בישראל | J45: 0 | K45: 0 | L45: 0 | M45: 0 | N45: 0 | O45: 0 | P45: 0 | Q45: 0 | R45: 0 | S45: 0 | T45: 0 | U45: 0 | V45: 0 | W45: 0 | X45: 0 | Y45: 0 | Z45: 0 | AA45: 0 | AB45: 0 | AC45: 0 | AD45: 0 | AE45: 0 | AF45: 0 | AG45: 0 | AH45: 0 | AI45: 0 | AJ45: 0 | AK45: 0 | AL45: 0 | AM45: 0 | AN45: 0 | AO45: 0 | AP45: 0 | AQ45: 0 | AR45: 0 | AS45: 0 | AT45: 0 | AU45: 0 | AV45: 0 | AW45: 0 | AX45: 0 | AY45: 0 | AZ45: 0 | BA45: 0 | BB45: 0 | BC45: 0 | BD45: 0 | BE45: 0 | BF45: 0 | BG45: 0 | BH45: 0 | BI45: 0 | BJ45: 0 | BK45: 0 | BL45: 0 | BM45: 0 | BN45: 0 | BO45: 0 | BP45: 0 | BQ45: 0 | BR45: 0 | BS45: 0 | BT45: 0 | BU45: 0 | BV45: 0 | BW45: 0 | BX45: 0 | BY45: 0 | BZ45: 0 | CA45: 0 | CB45: 0 | CC45: 0 | CD45: 0 | CE45: 0 | CF45: 0 | CG45: 0
A46: 46 | F46: (1) | G46: סחיר | J46: 0 | K46: 0 | L46: 0 | M46: 0 | N46: 0 | O46: 0 | P46: 0 | Q46: 0 | R46: 0 | S46: 0 | T46: 0 | U46: 0 | V46: 0 | W46: 0 | X46: 0 | Y46: 0 | Z46: 0 | AA46: 0 | AB46: 0 | AC46: 0 | AD46: 0 | AE46: 0 | AF46: 0 | AG46: 0 | AH46: 0 | AI46: 0 | AJ46: 0 | AK46: 0 | AL46: 0 | AM46: 0 | AN46: 0 | AO46: 0 | AP46: 0 | AQ46: 0 | AR46: 0 | AS46: 0 | AT46: 0 | AU46: 0 | AV46: 0 | AW46: 0 | AX46: 0 | AY46: 0 | AZ46: 0 | BA46: 0 | BB46: 0 | BC46: 0 | BD46: 0 | BE46: 0 | BF46: 0 | BG46: 0 | BH46: 0 | BI46: 0 | BJ46: 0 | BK46: 0 | BL46: 0 | BM46: 0 | BN46: 0 | BO46: 0 | BP46: 0 | BQ46: 0 | BR46: 0 | BS46: 0 | BT46: 0 | BU46: 0 | BV46: 0 | BW46: 0 | BX46: 0 | BY46: 0 | BZ46: 0 | CA46: 0 | CB46: 0 | CC46: 0 | CD46: 0 | CE46: 0 | CF46: 0 | CG46: 0
A47: 47 | G47: (א) | H47: דרוג AA- ומעלה | J47: 0 | K47: 0 | L47: 0 | M47: 0 | N47: 0 | O47: 0 | P47: 0 | Q47: 0 | R47: 0 | S47: 0 | T47: 0 | U47: 0 | V47: 0 | W47: 0 | X47: 0 | Y47: 0 | Z47: 0 | AA47: 0 | AB47: 0 | AC47: 0 | AD47: 0 | AE47: 0 | AF47: 0 | AG47: 0 | AH47: 0 | AI47: 0 | AJ47: 0 | AK47: 0 | AL47: 0 | AM47: 0 | AN47: 0 | AO47: 0 | AP47: 0 | AQ47: 0 | AR47: 0 | AS47: 0 | AT47: 0 | AU47: 0 | AV47: 0 | AW47: 0 | AX47: 0 | AY47: 0 | AZ47: 0 | BA47: 0 | BB47: 0 | BC47: 0 | BD47: 0 | BE47: 0 | BF47: 0 | BG47: 0 | BH47: 0 | BI47: 0 | BJ47: 0 | BK47: 0 | BL47: 0 | BM47: 0 | BN47: 0 | BO47: 0 | BP47: 0 | BQ47: 0 | BR47: 0 | BS47: 0 | BT47: 0 | BU47: 0 | BV47: 0 | BW47: 0 | BX47: 0 | BY47: 0 | BZ47: 0 | CA47: 0 | CB47: 0 | CC47: 0 | CD47: 0 | CE47: 0 | CF47: 0 | CG47: 0
A48: 48 | H48: a | I48: צמוד מדד | J48: 0 | K48: 0 | L48: 0 | M48: 0 | N48: 0 | P48: 0 | S48: 0 | T48: 0 | X48: 0 | Y48: 0 | Z48: 0 | AC48: 0 | AD48: 0 | AE48: 0 | AF48: 0 | AG48: 0 | AH48: 0 | AI48: 0 | AJ48: 0 | AK48: 0 | AL48: 0 | CG48: 0
A49: 49 | H49: b | I49: לא צמוד | J49: 0 | K49: 0 | L49: 0 | M49: 0 | N49: 0 | P49: 0 | S49: 0 | T49: 0 | X49: 0 | Y49: 0 | Z49: 0 | AC49: 0 | AD49: 0 | AE49: 0 | AF49: 0 | AG49: 0 | AH49: 0 | AI49: 0 | AJ49: 0 | AK49: 0 | AL49: 0 | CG49: 0
A50: 50 | H50: c | I50: צמוד מט"ח | J50: 0 | K50: 0 | L50: 0 | M50: 0 | N50: 0 | P50: 0 | S50: 0 | T50: 0 | X50: 0 | Y50: 0 | Z50: 0 | AC50: 0 | AD50: 0 | AE50: 0 | AF50: 0 | AG50: 0 | AH50: 0 | AI50: 0 | AJ50: 0 | AK50: 0 | AL50: 0 | CG50: 0
A51: 51 | G51: (ב) | H51: דרוג BBB- ועד A+ | J51: 0 | K51: 0 | L51: 0 | M51: 0 | N51: 0 | O51: 0 | P51: 0 | Q51: 0 | R51: 0 | S51: 0 | T51: 0 | U51: 0 | V51: 0 | W51: 0 | X51: 0 | Y51: 0 | Z51: 0 | AA51: 0 | AB51: 0 | AC51: 0 | AD51: 0 | AE51: 0 | AF51: 0 | AG51: 0 | AH51: 0 | AI51: 0 | AJ51: 0 | AK51: 0 | AL51: 0 | AM51: 0 | AN51: 0 | AO51: 0 | AP51: 0 | AQ51: 0 | AR51: 0 | AS51: 0 | AT51: 0 | AU51: 0 | AV51: 0 | AW51: 0 | AX51: 0 | AY51: 0 | AZ51: 0 | BA51: 0 | BB51: 0 | BC51: 0 | BD51: 0 | BE51: 0 | BF51: 0 | BG51: 0 | BH51: 0 | BI51: 0 | BJ51: 0 | BK51: 0 | BL51: 0 | BM51: 0 | BN51: 0 | BO51: 0 | BP51: 0 | BQ51: 0 | BR51: 0 | BS51: 0 | BT51: 0 | BU51: 0 | BV51: 0 | BW51: 0 | BX51: 0 | BY51: 0 | BZ51: 0 | CA51: 0 | CB51: 0 | CC51: 0 | CD51: 0 | CE51: 0 | CF51: 0 | CG51: 0
A52: 52 | H52: a | I52: צמוד מדד | J52: 0 | K52: 0 | L52: 0 | M52: 0 | N52: 0 | P52: 0 | S52: 0 | T52: 0 | X52: 0 | Y52: 0 | Z52: 0 | AC52: 0 | AD52: 0 | AE52: 0 | AF52: 0 | AG52: 0 | AH52: 0 | AI52: 0 | AJ52: 0 | AK52: 0 | AL52: 0 | CG52: 0
A53: 53 | H53: b | I53: לא צמוד | J53: 0 | K53: 0 | L53: 0 | M53: 0 | N53: 0 | P53: 0 | S53: 0 | T53: 0 | X53: 0 | Y53: 0 | Z53: 0 | AC53: 0 | AD53: 0 | AE53: 0 | AF53: 0 | AG53: 0 | AH53: 0 | AI53: 0 | AJ53: 0 | AK53: 0 | AL53: 0 | CG53: 0
A54: 54 | H54: c | I54: צמוד מט"ח | J54: 0 | K54: 0 | L54: 0 | M54: 0 | N54: 0 | P54: 0 | S54: 0 | T54: 0 | X54: 0 | Y54: 0 | Z54: 0 | AC54: 0 | AD54: 0 | AE54: 0 | AF54: 0 | AG54: 0 | AH54: 0 | AI54: 0 | AJ54: 0 | AK54: 0 | AL54: 0 | CG54: 0
A55: 55 | G55: (ג) | H55: דרוג נמוך מ- BBB- או לא מדורג | J55: 0 | K55: 0 | L55: 0 | M55: 0 | N55: 0 | O55: 0 | P55: 0 | Q55: 0 | R55: 0 | S55: 0 | T55: 0 | U55: 0 | V55: 0 | W55: 0 | X55: 0 | Y55: 0 | Z55: 0 | AA55: 0 | AB55: 0 | AC55: 0 | AD55: 0 | AE55: 0 | AF55: 0 | AG55: 0 | AH55: 0 | AI55: 0 | AJ55: 0 | AK55: 0 | AL55: 0 | AM55: 0 | AN55: 0 | AO55: 0 | AP55: 0 | AQ55: 0 | AR55: 0 | AS55: 0 | AT55: 0 | AU55: 0 | AV55: 0 | AW55: 0 | AX55: 0 | AY55: 0 | AZ55: 0 | BA55: 0 | BB55: 0 | BC55: 0 | BD55: 0 | BE55: 0 | BF55: 0 | BG55: 0 | BH55: 0 | BI55: 0 | BJ55: 0 | BK55: 0 | BL55: 0 | BM55: 0 | BN55: 0 | BO55: 0 | BP55: 0 | BQ55: 0 | BR55: 0 | BS55: 0 | BT55: 0 | BU55: 0 | BV55: 0 | BW55: 0 | BX55: 0 | BY55: 0 | BZ55: 0 | CA55: 0 | CB55: 0 | CC55: 0 | CD55: 0 | CE55: 0 | CF55: 0 | CG55: 0
A56: 56 | H56: a | I56: צמוד מדד | J56: 0 | K56: 0 | L56: 0 | M56: 0 | N56: 0 | P56: 0 | S56: 0 | T56: 0 | X56: 0 | Y56: 0 | Z56: 0 | AC56: 0 | AD56: 0 | AE56: 0 | AF56: 0 | AG56: 0 | AH56: 0 | AI56: 0 | AJ56: 0 | AK56: 0 | AL56: 0 | CG56: 0
A57: 57 | H57: b | I57: לא צמוד | J57: 0 | K57: 0 | L57: 0 | M57: 0 | N57: 0 | P57: 0 | S57: 0 | T57: 0 | X57: 0 | Y57: 0 | Z57: 0 | AC57: 0 | AD57: 0 | AE57: 0 | AF57: 0 | AG57: 0 | AH57: 0 | AI57: 0 | AJ57: 0 | AK57: 0 | AL57: 0 | CG57: 0
A58: 58 | H58: c | I58: צמוד מט"ח | J58: 0 | K58: 0 | L58: 0 | M58: 0 | N58: 0 | P58: 0 | S58: 0 | T58: 0 | X58: 0 | Y58: 0 | Z58: 0 | AC58: 0 | AD58: 0 | AE58: 0 | AF58: 0 | AG58: 0 | AH58: 0 | AI58: 0 | AJ58: 0 | AK58: 0 | AL58: 0 | CG58: 0
A59: 59 | F59: (2) | G59: לא סחיר | J59: 0 | K59: 0 | L59: 0 | M59: 0 | N59: 0 | O59: 0 | P59: 0 | Q59: 0 | R59: 0 | S59: 0 | T59: 0 | U59: 0 | V59: 0 | W59: 0 | X59: 0 | Y59: 0 | Z59: 0 | AA59: 0 | AB59: 0 | AC59: 0 | AD59: 0 | AE59: 0 | AF59: 0 | AG59: 0 | AH59: 0 | AI59: 0 | AJ59: 0 | AK59: 0 | AL59: 0 | AM59: 0 | AN59: 0 | AO59: 0 | AP59: 0 | AQ59: 0 | AR59: 0 | AS59: 0 | AT59: 0 | AU59: 0 | AV59: 0 | AW59: 0 | AX59: 0 | AY59: 0 | AZ59: 0 | BA59: 0 | BB59: 0 | BC59: 0 | BD59: 0 | BE59: 0 | BF59: 0 | BG59: 0 | BH59: 0 | BI59: 0 | BJ59: 0 | BK59: 0 | BL59: 0 | BM59: 0 | BN59: 0 | BO59: 0 | BP59: 0 | BQ59: 0 | BR59: 0 | BS59: 0 | BT59: 0 | BU59: 0 | BV59: 0 | BW59: 0 | BX59: 0 | BY59: 0 | BZ59: 0 | CA59: 0 | CB59: 0 | CC59: 0 | CD59: 0 | CE59: 0 | CF59: 0 | CG59: 0
A60: 60 | G60: (א) | H60: =$H$47 -> דרוג AA- ומעלה | J60: 0 | K60: 0 | L60: 0 | M60: 0 | N60: 0 | O60: 0 | P60: 0 | Q60: 0 | R60: 0 | S60: 0 | T60: 0 | U60: 0 | V60: 0 | W60: 0 | X60: 0 | Y60: 0 | Z60: 0 | AA60: 0 | AB60: 0 | AC60: 0 | AD60: 0 | AE60: 0 | AF60: 0 | AG60: 0 | AH60: 0 | AI60: 0 | AJ60: 0 | AK60: 0 | AL60: 0 | AM60: 0 | AN60: 0 | AO60: 0 | AP60: 0 | AQ60: 0 | AR60: 0 | AS60: 0 | AT60: 0 | AU60: 0 | AV60: 0 | AW60: 0 | AX60: 0 | AY60: 0 | AZ60: 0 | BA60: 0 | BB60: 0 | BC60: 0 | BD60: 0 | BE60: 0 | BF60: 0 | BG60: 0 | BH60: 0 | BI60: 0 | BJ60: 0 | BK60: 0 | BL60: 0 | BM60: 0 | BN60: 0 | BO60: 0 | BP60: 0 | BQ60: 0 | BR60: 0 | BS60: 0 | BT60: 0 | BU60: 0 | BV60: 0 | BW60: 0 | BX60: 0 | BY60: 0 | BZ60: 0 | CA60: 0 | CB60: 0 | CC60: 0 | CD60: 0 | CE60: 0 | CF60: 0 | CG60: 0
A61: 61 | H61: a | I61: צמוד מדד | J61: 0 | K61: 0 | L61: 0 | M61: 0 | N61: 0 | P61: 0 | S61: 0 | T61: 0 | X61: 0 | Y61: 0 | Z61: 0 | AC61: 0 | AD61: 0 | AE61: 0 | AF61: 0 | AG61: 0 | AH61: 0 | AI61: 0 | AJ61: 0 | AK61: 0 | AL61: 0 | CG61: 0
A62: 62 | H62: b | I62: לא צמוד | J62: 0 | K62: 0 | L62: 0 | M62: 0 | N62: 0 | P62: 0 | S62: 0 | T62: 0 | X62: 0 | Y62: 0 | Z62: 0 | AC62: 0 | AD62: 0 | AE62: 0 | AF62: 0 | AG62: 0 | AH62: 0 | AI62: 0 | AJ62: 0 | AK62: 0 | AL62: 0 | CG62: 0
A63: 63 | H63: c | I63: צמוד מט"ח | J63: 0 | K63: 0 | L63: 0 | M63: 0 | N63: 0 | P63: 0 | S63: 0 | T63: 0 | X63: 0 | Y63: 0 | Z63: 0 | AC63: 0 | AD63: 0 | AE63: 0 | AF63: 0 | AG63: 0 | AH63: 0 | AI63: 0 | AJ63: 0 | AK63: 0 | AL63: 0 | CG63: 0
A64: 64 | G64: (ב) | H64: =$H$51 -> דרוג BBB- ועד A+ | J64: 0 | K64: 0 | L64: 0 | M64: 0 | N64: 0 | O64: 0 | P64: 0 | Q64: 0 | R64: 0 | S64: 0 | T64: 0 | U64: 0 | V64: 0 | W64: 0 | X64: 0 | Y64: 0 | Z64: 0 | AA64: 0 | AB64: 0 | AC64: 0 | AD64: 0 | AE64: 0 | AF64: 0 | AG64: 0 | AH64: 0 | AI64: 0 | AJ64: 0 | AK64: 0 | AL64: 0 | AM64: 0 | AN64: 0 | AO64: 0 | AP64: 0 | AQ64: 0 | AR64: 0 | AS64: 0 | AT64: 0 | AU64: 0 | AV64: 0 | AW64: 0 | AX64: 0 | AY64: 0 | AZ64: 0 | BA64: 0 | BB64: 0 | BC64: 0 | BD64: 0 | BE64: 0 | BF64: 0 | BG64: 0 | BH64: 0 | BI64: 0 | BJ64: 0 | BK64: 0 | BL64: 0 | BM64: 0 | BN64: 0 | BO64: 0 | BP64: 0 | BQ64: 0 | BR64: 0 | BS64: 0 | BT64: 0 | BU64: 0 | BV64: 0 | BW64: 0 | BX64: 0 | BY64: 0 | BZ64: 0 | CA64: 0 | CB64: 0 | CC64: 0 | CD64: 0 | CE64: 0 | CF64: 0 | CG64: 0
A65: 65 | H65: a | I65: צמוד מדד | J65: 0 | K65: 0 | L65: 0 | M65: 0 | N65: 0 | P65: 0 | S65: 0 | T65: 0 | X65: 0 | Y65: 0 | Z65: 0 | AC65: 0 | AD65: 0 | AE65: 0 | AF65: 0 | AG65: 0 | AH65: 0 | AI65: 0 | AJ65: 0 | AK65: 0 | AL65: 0 | CG65: 0
A66: 66 | H66: b | I66: לא צמוד | J66: 0 | K66: 0 | L66: 0 | M66: 0 | N66: 0 | P66: 0 | S66: 0 | T66: 0 | X66: 0 | Y66: 0 | Z66: 0 | AC66: 0 | AD66: 0 | AE66: 0 | AF66: 0 | AG66: 0 | AH66: 0 | AI66: 0 | AJ66: 0 | AK66: 0 | AL66: 0 | CG66: 0
A67: 67 | H67: c | I67: צמוד מט"ח | J67: 0 | K67: 0 | L67: 0 | M67: 0 | N67: 0 | P67: 0 | S67: 0 | T67: 0 | X67: 0 | Y67: 0 | Z67: 0 | AC67: 0 | AD67: 0 | AE67: 0 | AF67: 0 | AG67: 0 | AH67: 0 | AI67: 0 | AJ67: 0 | AK67: 0 | AL67: 0 | CG67: 0
A68: 68 | G68: (ג) | H68: בדרוג נמוך מ- BBB- או לא מדורג עם בטוחה מספקת | J68: 0 | K68: 0 | L68: 0 | M68: 0 | N68: 0 | O68: 0 | P68: 0 | Q68: 0 | R68: 0 | S68: 0 | T68: 0 | U68: 0 | V68: 0 | W68: 0 | X68: 0 | Y68: 0 | Z68: 0 | AA68: 0 | AB68: 0 | AC68: 0 | AD68: 0 | AE68: 0 | AF68: 0 | AG68: 0 | AH68: 0 | AI68: 0 | AJ68: 0 | AK68: 0 | AL68: 0 | AM68: 0 | AN68: 0 | AO68: 0 | AP68: 0 | AQ68: 0 | AR68: 0 | AS68: 0 | AT68: 0 | AU68: 0 | AV68: 0 | AW68: 0 | AX68: 0 | AY68: 0 | AZ68: 0 | BA68: 0 | BB68: 0 | BC68: 0 | BD68: 0 | BE68: 0 | BF68: 0 | BG68: 0 | BH68: 0 | BI68: 0 | BJ68: 0 | BK68: 0 | BL68: 0 | BM68: 0 | BN68: 0 | BO68: 0 | BP68: 0 | BQ68: 0 | BR68: 0 | BS68: 0 | BT68: 0 | BU68: 0 | BV68: 0 | BW68: 0 | BX68: 0 | BY68: 0 | BZ68: 0 | CA68: 0 | CB68: 0 | CC68: 0 | CD68: 0 | CE68: 0 | CF68: 0 | CG68: 0
A69: 69 | H69: a | I69: צמוד מדד | J69: 0 | K69: 0 | L69: 0 | M69: 0 | N69: 0 | P69: 0 | S69: 0 | T69: 0 | X69: 0 | Y69: 0 | Z69: 0 | AC69: 0 | AD69: 0 | AE69: 0 | AF69: 0 | AG69: 0 | AH69: 0 | AI69: 0 | AJ69: 0 | AK69: 0 | AL69: 0 | CG69: 0
A70: 70 | H70: b | I70: לא צמוד | J70: 0 | K70: 0 | L70: 0 | M70: 0 | N70: 0 | P70: 0 | S70: 0 | T70: 0 | X70: 0 | Y70: 0 | Z70: 0 | AC70: 0 | AD70: 0 | AE70: 0 | AF70: 0 | AG70: 0 | AH70: 0 | AI70: 0 | AJ70: 0 | AK70: 0 | AL70: 0 | CG70: 0
A71: 71 | H71: c | I71: צמוד מט"ח | J71: 0 | K71: 0 | L71: 0 | M71: 0 | N71: 0 | P71: 0 | S71: 0 | T71: 0 | X71: 0 | Y71: 0 | Z71: 0 | AC71: 0 | AD71: 0 | AE71: 0 | AF71: 0 | AG71: 0 | AH71: 0 | AI71: 0 | AJ71: 0 | AK71: 0 | AL71: 0 | CG71: 0
A72: 72 | G72: (ד) | H72: =$H$55 -> דרוג נמוך מ- BBB- או לא מדורג | J72: 0 | K72: 0 | L72: 0 | M72: 0 | N72: 0 | O72: 0 | P72: 0 | Q72: 0 | R72: 0 | S72: 0 | T72: 0 | U72: 0 | V72: 0 | W72: 0 | X72: 0 | Y72: 0 | Z72: 0 | AA72: 0 | AB72: 0 | AC72: 0 | AD72: 0 | AE72: 0 | AF72: 0 | AG72: 0 | AH72: 0 | AI72: 0 | AJ72: 0 | AK72: 0 | AL72: 0 | AM72: 0 | AN72: 0 | AO72: 0 | AP72: 0 | AQ72: 0 | AR72: 0 | AS72: 0 | AT72: 0 | AU72: 0 | AV72: 0 | AW72: 0 | AX72: 0 | AY72: 0 | AZ72: 0 | BA72: 0 | BB72: 0 | BC72: 0 | BD72: 0 | BE72: 0 | BF72: 0 | BG72: 0 | BH72: 0 | BI72: 0 | BJ72: 0 | BK72: 0 | BL72: 0 | BM72: 0 | BN72: 0 | BO72: 0 | BP72: 0 | BQ72: 0 | BR72: 0 | BS72: 0 | BT72: 0 | BU72: 0 | BV72: 0 | BW72: 0 | BX72: 0 | BY72: 0 | BZ72: 0 | CA72: 0 | CB72: 0 | CC72: 0 | CD72: 0 | CE72: 0 | CF72: 0 | CG72: 0
A73: 73 | H73: a | I73: צמוד מדד | J73: 0 | K73: 0 | L73: 0 | M73: 0 | N73: 0 | P73: 0 | S73: 0 | T73: 0 | X73: 0 | Y73: 0 | Z73: 0 | AC73: 0 | AD73: 0 | AE73: 0 | AF73: 0 | AG73: 0 | AH73: 0 | AI73: 0 | AJ73: 0 | AK73: 0 | AL73: 0 | CG73: 0
A74: 74 | H74: b | I74: לא צמוד | J74: 0 | K74: 0 | L74: 0 | M74: 0 | N74: 0 | P74: 0 | S74: 0 | T74: 0 | X74: 0 | Y74: 0 | Z74: 0 | AC74: 0 | AD74: 0 | AE74: 0 | AF74: 0 | AG74: 0 | AH74: 0 | AI74: 0 | AJ74: 0 | AK74: 0 | AL74: 0 | CG74: 0
A75: =A74+1 -> 75 | H75: c | I75: צמוד מט"ח | J75: 0 | K75: 0 | L75: 0 | M75: 0 | N75: 0 | P75: 0 | S75: 0 | T75: 0 | X75: 0 | Y75: 0 | Z75: 0 | AC75: 0 | AD75: 0 | AE75: 0 | AF75: 0 | AG75: 0 | AH75: 0 | AI75: 0 | AJ75: 0 | AK75: 0 | AL75: 0 | CG75: 0
A76: 76 | E76: ב) | F76: בחו"ל | J76: 0 | K76: 0 | L76: 0 | M76: 0 | N76: 0 | O76: 0 | P76: 0 | Q76: 0 | R76: 0 | S76: 0 | T76: 0 | U76: 0 | V76: 0 | W76: 0 | X76: 0 | Y76: 0 | Z76: 0 | AA76: 0 | AB76: 0 | AC76: 0 | AD76: 0 | AE76: 0 | AF76: 0 | AG76: 0 | AH76: 0 | AI76: 0 | AJ76: 0 | AK76: 0 | AL76: 0 | AM76: 0 | AN76: 0 | AO76: 0 | AP76: 0 | AQ76: 0 | AR76: 0 | AS76: 0 | AT76: 0 | AU76: 0 | AV76: 0 | AW76: 0 | AX76: 0 | AY76: 0 | AZ76: 0 | BA76: 0 | BB76: 0 | BC76: 0 | BD76: 0 | BE76: 0 | BF76: 0 | BG76: 0 | BH76: 0 | BI76: 0 | BJ76: 0 | BK76: 0 | BL76: 0 | BM76: 0 | BN76: 0 | BO76: 0 | BP76: 0 | BQ76: 0 | BR76: 0 | BS76: 0 | BT76: 0 | BU76: 0 | BV76: 0 | BW76: 0 | BX76: 0 | BY76: 0 | BZ76: 0 | CA76: 0 | CB76: 0 | CC76: 0 | CD76: 0 | CE76: 0 | CF76: 0 | CG76: 0
A77: 77 | F77: (1) | G77: סחיר - חברות ישראליות | J77: 0 | K77: 0 | L77: 0 | M77: 0 | N77: 0 | O77: 0 | P77: 0 | Q77: 0 | R77: 0 | S77: 0 | T77: 0 | U77: 0 | V77: 0 | W77: 0 | X77: 0 | Y77: 0 | Z77: 0 | AA77: 0 | AB77: 0 | AC77: 0 | AD77: 0 | AE77: 0 | AF77: 0 | AG77: 0 | AH77: 0 | AI77: 0 | AJ77: 0 | AK77: 0 | AL77: 0 | AM77: 0 | AN77: 0 | AO77: 0 | AP77: 0 | AQ77: 0 | AR77: 0 | AS77: 0 | AT77: 0 | AU77: 0 | AV77: 0 | AW77: 0 | AX77: 0 | AY77: 0 | AZ77: 0 | BA77: 0 | BB77: 0 | BC77: 0 | BD77: 0 | BE77: 0 | BF77: 0 | BG77: 0 | BH77: 0 | BI77: 0 | BJ77: 0 | BK77: 0 | BL77: 0 | BM77: 0 | BN77: 0 | BO77: 0 | BP77: 0 | BQ77: 0 | BR77: 0 | BS77: 0 | BT77: 0 | BU77: 0 | BV77: 0 | BW77: 0 | BX77: 0 | BY77: 0 | BZ77: 0 | CA77: 0 | CB77: 0 | CC77: 0 | CD77: 0 | CE77: 0 | CF77: 0 | CG77: 0
A78: 78 | G78: (א) | H78: דרוג A- ומעלה | J78: 0 | K78: 0 | L78: 0 | M78: 0 | N78: 0 | P78: 0 | S78: 0 | T78: 0 | X78: 0 | Y78: 0 | Z78: 0 | AC78: 0 | AD78: 0 | AE78: 0 | AF78: 0 | AG78: 0 | AH78: 0 | AI78: 0 | AJ78: 0 | AK78: 0 | AL78: 0 | CG78: 0
A79: 79 | G79: (ב) | H79: דרוג BBB- ועד BBB+ | J79: 0 | K79: 0 | L79: 0 | M79: 0 | N79: 0 | P79: 0 | S79: 0 | T79: 0 | X79: 0 | Y79: 0 | Z79: 0 | AC79: 0 | AD79: 0 | AE79: 0 | AF79: 0 | AG79: 0 | AH79: 0 | AI79: 0 | AJ79: 0 | AK79: 0 | AL79: 0 | CG79: 0
A80: 80 | G80: (ג) | H80: דרוג נמוך מ- BBB- או לא מדורג | J80: 0 | K80: 0 | L80: 0 | M80: 0 | N80: 0 | P80: 0 | S80: 0 | T80: 0 | X80: 0 | Y80: 0 | Z80: 0 | AC80: 0 | AD80: 0 | AE80: 0 | AF80: 0 | AG80: 0 | AH80: 0 | AI80: 0 | AJ80: 0 | AK80: 0 | AL80: 0 | CG80: 0
A81: 81 | F81: (2) | G81: לא סחיר - חברות ישראליות | J81: 0 | K81: 0 | L81: 0 | M81: 0 | N81: 0 | O81: 0 | P81: 0 | Q81: 0 | R81: 0 | S81: 0 | T81: 0 | U81: 0 | V81: 0 | W81: 0 | X81: 0 | Y81: 0 | Z81: 0 | AA81: 0 | AB81: 0 | AC81: 0 | AD81: 0 | AE81: 0 | AF81: 0 | AG81: 0 | AH81: 0 | AI81: 0 | AJ81: 0 | AK81: 0 | AL81: 0 | AM81: 0 | AN81: 0 | AO81: 0 | AP81: 0 | AQ81: 0 | AR81: 0 | AS81: 0 | AT81: 0 | AU81: 0 | AV81: 0 | AW81: 0 | AX81: 0 | AY81: 0 | AZ81: 0 | BA81: 0 | BB81: 0 | BC81: 0 | BD81: 0 | BE81: 0 | BF81: 0 | BG81: 0 | BH81: 0 | BI81: 0 | BJ81: 0 | BK81: 0 | BL81: 0 | BM81: 0 | BN81: 0 | BO81: 0 | BP81: 0 | BQ81: 0 | BR81: 0 | BS81: 0 | BT81: 0 | BU81: 0 | BV81: 0 | BW81: 0 | BX81: 0 | BY81: 0 | BZ81: 0 | CA81: 0 | CB81: 0 | CC81: 0 | CD81: 0 | CE81: 0 | CF81: 0 | CG81: 0
A82: 82 | G82: (א) | H82: =$H$78 -> דרוג A- ומעלה | J82: 0 | K82: 0 | L82: 0 | M82: 0 | N82: 0 | P82: 0 | S82: 0 | T82: 0 | X82: 0 | Y82: 0 | Z82: 0 | AC82: 0 | AD82: 0 | AE82: 0 | AF82: 0 | AG82: 0 | AH82: 0 | AI82: 0 | AJ82: 0 | AK82: 0 | AL82: 0 | CG82: 0
A83: 83 | G83: (ב) | H83: =$H$79 -> דרוג BBB- ועד BBB+ | J83: 0 | K83: 0 | L83: 0 | M83: 0 | N83: 0 | P83: 0 | S83: 0 | T83: 0 | X83: 0 | Y83: 0 | Z83: 0 | AC83: 0 | AD83: 0 | AE83: 0 | AF83: 0 | AG83: 0 | AH83: 0 | AI83: 0 | AJ83: 0 | AK83: 0 | AL83: 0 | CG83: 0
A84: 84 | G84: (ג) | H84: =$H$68 -> בדרוג נמוך מ- BBB- או לא מדורג עם בטוחה מספקת | J84: 0 | K84: 0 | L84: 0 | M84: 0 | N84: 0 | P84: 0 | S84: 0 | T84: 0 | X84: 0 | Y84: 0 | Z84: 0 | AC84: 0 | AD84: 0 | AE84: 0 | AF84: 0 | AG84: 0 | AH84: 0 | AI84: 0 | AJ84: 0 | AK84: 0 | AL84: 0 | CG84: 0
A85: 85 | G85: (ד) | H85: =H80 -> דרוג נמוך מ- BBB- או לא מדורג | J85: 0 | K85: 0 | L85: 0 | M85: 0 | N85: 0 | P85: 0 | S85: 0 | T85: 0 | X85: 0 | Y85: 0 | Z85: 0 | AC85: 0 | AD85: 0 | AE85: 0 | AF85: 0 | AG85: 0 | AH85: 0 | AI85: 0 | AJ85: 0 | AK85: 0 | AL85: 0 | CG85: 0
A86: 86 | F86: (3) | G86: סחיר - חברות זרות | J86: 0 | K86: 0 | L86: 0 | M86: 0 | N86: 0 | O86: 0 | P86: 0 | Q86: 0 | R86: 0 | S86: 0 | T86: 0 | U86: 0 | V86: 0 | W86: 0 | X86: 0 | Y86: 0 | Z86: 0 | AA86: 0 | AB86: 0 | AC86: 0 | AD86: 0 | AE86: 0 | AF86: 0 | AG86: 0 | AH86: 0 | AI86: 0 | AJ86: 0 | AK86: 0 | AL86: 0 | AM86: 0 | AN86: 0 | AO86: 0 | AP86: 0 | AQ86: 0 | AR86: 0 | AS86: 0 | AT86: 0 | AU86: 0 | AV86: 0 | AW86: 0 | AX86: 0 | AY86: 0 | AZ86: 0 | BA86: 0 | BB86: 0 | BC86: 0 | BD86: 0 | BE86: 0 | BF86: 0 | BG86: 0 | BH86: 0 | BI86: 0 | BJ86: 0 | BK86: 0 | BL86: 0 | BM86: 0 | BN86: 0 | BO86: 0 | BP86: 0 | BQ86: 0 | BR86: 0 | BS86: 0 | BT86: 0 | BU86: 0 | BV86: 0 | BW86: 0 | BX86: 0 | BY86: 0 | BZ86: 0 | CA86: 0 | CB86: 0 | CC86: 0 | CD86: 0 | CE86: 0 | CF86: 0 | CG86: 0
A87: 87 | G87: (א) | H87: =$H$78 -> דרוג A- ומעלה | J87: 0 | K87: 0 | L87: 0 | M87: 0 | N87: 0 | P87: 0 | S87: 0 | T87: 0 | X87: 0 | Y87: 0 | Z87: 0 | AC87: 0 | AD87: 0 | AE87: 0 | AF87: 0 | AG87: 0 | AH87: 0 | AI87: 0 | AJ87: 0 | AK87: 0 | AL87: 0 | CG87: 0
A88: 88 | G88: (ב) | H88: =$H$79 -> דרוג BBB- ועד BBB+ | J88: 0 | K88: 0 | L88: 0 | M88: 0 | N88: 0 | P88: 0 | S88: 0 | T88: 0 | X88: 0 | Y88: 0 | Z88: 0 | AC88: 0 | AD88: 0 | AE88: 0 | AF88: 0 | AG88: 0 | AH88: 0 | AI88: 0 | AJ88: 0 | AK88: 0 | AL88: 0 | CG88: 0
A89: 89 | G89: (ג) | H89: =$H$80 -> דרוג נמוך מ- BBB- או לא מדורג | J89: 0 | K89: 0 | L89: 0 | M89: 0 | N89: 0 | P89: 0 | S89: 0 | T89: 0 | X89: 0 | Y89: 0 | Z89: 0 | AC89: 0 | AD89: 0 | AE89: 0 | AF89: 0 | AG89: 0 | AH89: 0 | AI89: 0 | AJ89: 0 | AK89: 0 | AL89: 0 | CG89: 0
A90: 90 | F90: (4) | G90: לא סחיר - חברות זרות | J90: 0 | K90: 0 | L90: 0 | M90: 0 | N90: 0 | O90: 0 | P90: 0 | Q90: 0 | R90: 0 | S90: 0 | T90: 0 | U90: 0 | V90: 0 | W90: 0 | X90: 0 | Y90: 0 | Z90: 0 | AA90: 0 | AB90: 0 | AC90: 0 | AD90: 0 | AE90: 0 | AF90: 0 | AG90: 0 | AH90: 0 | AI90: 0 | AJ90: 0 | AK90: 0 | AL90: 0 | AM90: 0 | AN90: 0 | AO90: 0 | AP90: 0 | AQ90: 0 | AR90: 0 | AS90: 0 | AT90: 0 | AU90: 0 | AV90: 0 | AW90: 0 | AX90: 0 | AY90: 0 | AZ90: 0 | BA90: 0 | BB90: 0 | BC90: 0 | BD90: 0 | BE90: 0 | BF90: 0 | BG90: 0 | BH90: 0 | BI90: 0 | BJ90: 0 | BK90: 0 | BL90: 0 | BM90: 0 | BN90: 0 | BO90: 0 | BP90: 0 | BQ90: 0 | BR90: 0 | BS90: 0 | BT90: 0 | BU90: 0 | BV90: 0 | BW90: 0 | BX90: 0 | BY90: 0 | BZ90: 0 | CA90: 0 | CB90: 0 | CC90: 0 | CD90: 0 | CE90: 0 | CF90: 0 | CG90: 0
A91: 91 | G91: (א) | H91: =$H$78 -> דרוג A- ומעלה | J91: 0 | K91: 0 | L91: 0 | M91: 0 | N91: 0 | P91: 0 | S91: 0 | T91: 0 | X91: 0 | Y91: 0 | Z91: 0 | AC91: 0 | AD91: 0 | AE91: 0 | AF91: 0 | AG91: 0 | AH91: 0 | AI91: 0 | AJ91: 0 | AK91: 0 | AL91: 0 | CG91: 0
A92: 92 | G92: (ב) | H92: =$H$79 -> דרוג BBB- ועד BBB+ | J92: 0 | K92: 0 | L92: 0 | M92: 0 | N92: 0 | P92: 0 | S92: 0 | T92: 0 | X92: 0 | Y92: 0 | Z92: 0 | AC92: 0 | AD92: 0 | AE92: 0 | AF92: 0 | AG92: 0 | AH92: 0 | AI92: 0 | AJ92: 0 | AK92: 0 | AL92: 0 | CG92: 0
A93: 93 | G93: (ג) | H93: =$H$68 -> בדרוג נמוך מ- BBB- או לא מדורג עם בטוחה מספקת | J93: 0 | K93: 0 | L93: 0 | M93: 0 | N93: 0 | P93: 0 | S93: 0 | T93: 0 | X93: 0 | Y93: 0 | Z93: 0 | AC93: 0 | AD93: 0 | AE93: 0 | AF93: 0 | AG93: 0 | AH93: 0 | AI93: 0 | AJ93: 0 | AK93: 0 | AL93: 0 | CG93: 0
A94: 94 | G94: (ד) | H94: =H89 -> דרוג נמוך מ- BBB- או לא מדורג | J94: 0 | K94: 0 | L94: 0 | M94: 0 | N94: 0 | P94: 0 | S94: 0 | T94: 0 | X94: 0 | Y94: 0 | Z94: 0 | AC94: 0 | AD94: 0 | AE94: 0 | AF94: 0 | AG94: 0 | AH94: 0 | AI94: 0 | AJ94: 0 | AK94: 0 | AL94: 0 | CG94: 0
A95: 95 | AC95: 0 | AD95: 0 | AE95: 0 | AF95: 0 | AG95: 0 | AH95: 0 | AI95: 0 | AJ95: 0 | AK95: 0 | AL95: 0 | CG95: 0
A96: 96 | D96: (3 | E96: אג"ח קונצרני: | J96: 8615010.934 | K96: 180.1466659 | L96: 65339.35385 | M96: 1927268.286 | N96: 67031.98358 | O96: 1961945.07 | P96: 204103.4293 | Q96: 1154010.97 | R96: 287206.72 | S96: 11.78454088 | T96: 1631.862787 | U96: 611838.41 | V96: 0 | W96: 187584.17 | X96: 109.0272126 | Y96: 12583.80074 | Z96: 0.7454591154 | AA96: 48305.31 | AB96: 0 | AC96: 168675.7895 | AD96: 184234.4875 | AE96: 251252.9747 | AF96: 337707.1184 | AG96: 211071.3747 | AH96: 1910.73054 | AI96: 16760.91247 | AJ96: 33024.71529 | AK96: 227017.9416 | AL96: 110710.5753 | AM96: 0 | AN96: 0 | AO96: 0 | AP96: 0 | AQ96: 0 | AR96: 0 | AS96: 0 | AT96: 2129.78 | AU96: 0 | AV96: 0 | AW96: 0 | AX96: 0 | AY96: 0 | AZ96: 0 | BA96: 0 | BB96: 0 | BC96: 0 | BD96: 0 | BE96: 0 | BF96: 0 | BG96: 0 | BH96: 0 | BI96: 0 | BJ96: 0 | BK96: 0 | BL96: 0 | BM96: 0 | BN96: 0 | BO96: 0 | BP96: 0 | BQ96: 0 | BR96: 0 | BS96: 0 | BT96: 0 | BU96: 0 | BV96: 0 | BW96: 0 | BX96: 0 | BY96: 0 | BZ96: 0 | CA96: 0 | CB96: 0 | CC96: 0 | CD96: 0 | CE96: 0 | CF96: 0 | CG96: 541363.4638
A97: 97 | E97: א) | F97: בישראל | J97: 5958183.079 | K97: 131.553421 | L97: 47714.54128 | M97: 1407401.769 | N97: 48950.59652 | O97: 1427372.36 | P97: 160049.8692 | Q97: 908370.07 | R97: 237801.67 | S97: 7.542858571 | T97: 1631.862787 | U97: 270.61 | V97: 0 | W97: 141076.98 | X97: 109.0272126 | Y97: 9867.720835 | Z97: 0.477141429 | AA97: 60.22 | AB97: 0 | AC97: 125442.301 | AD97: 130729.4964 | AE97: 192365.9862 | AF97: 269507.3667 | AG97: 165466.7347 | AH97: 1420.988966 | AI97: 11893.24363 | AJ97: 25284.60382 | AK97: 181171.8033 | AL97: 86790.1553 | AM97: 0 | AN97: 0 | AO97: 0 | AP97: 0 | AQ97: 0 | AR97: 0 | AS97: 0 | AT97: 0 | AU97: 0 | AV97: 0 | AW97: 0 | AX97: 0 | AY97: 0 | AZ97: 0 | BA97: 0 | BB97: 0 | BC97: 0 | BD97: 0 | BE97: 0 | BF97: 0 | BG97: 0 | BH97: 0 | BI97: 0 | BJ97: 0 | BK97: 0 | BL97: 0 | BM97: 0 | BN97: 0 | BO97: 0 | BP97: 0 | BQ97: 0 | BR97: 0 | BS97: 0 | BT97: 0 | BU97: 0 | BV97: 0 | BW97: 0 | BX97: 0 | BY97: 0 | BZ97: 0 | CA97: 0 | CB97: 0 | CC97: 0 | CD97: 0 | CE97: 0 | CF97: 0 | CG97: 377293.5292
A98: 98 | F98: (1) | G98: סחיר | J98: 5546666.358 | K98: 112.9000075 | L98: 40948.93183 | M98: 1207841.416 | N98: 42009.72253 | O98: 1340601.79 | P98: 151680.2971 | Q98: 885956.04 | R98: 236761.98 | S98: 7.542858571 | T98: 1631.862787 | U98: 268.41 | V98: 0 | W98: 137692.31 | X98: 109.0272126 | Y98: 9351.702913 | Z98: 0.477141429 | AA98: 47.65 | AB98: 0 | AC98: 118968.2183 | AD98: 123953.4077 | AE98: 182837.3421 | AF98: 255937.4712 | AG98: 160484.2656 | AH98: 1347.651663 | AI98: 11276.78234 | AJ98: 24032.15792 | AK98: 172049.6688 | AL98: 84176.76437 | AM98: 0 | AN98: 0 | AO98: 0 | AP98: 0 | AQ98: 0 | AR98: 0 | AS98: 0 | AT98: 0 | AU98: 0 | AV98: 0 | AW98: 0 | AX98: 0 | AY98: 0 | AZ98: 0 | BA98: 0 | BB98: 0 | BC98: 0 | BD98: 0 | BE98: 0 | BF98: 0 | BG98: 0 | BH98: 0 | BI98: 0 | BJ98: 0 | BK98: 0 | BL98: 0 | BM98: 0 | BN98: 0 | BO98: 0 | BP98: 0 | BQ98: 0 | BR98: 0 | BS98: 0 | BT98: 0 | BU98: 0 | BV98: 0 | BW98: 0 | BX98: 0 | BY98: 0 | BZ98: 0 | CA98: 0 | CB98: 0 | CC98: 0 | CD98: 0 | CE98: 0 | CF98: 0 | CG98: 356580.5685
A99: 99 | G99: (א) | H99: =$H$47 -> דרוג AA- ומעלה | J99: 3997565.317 | K99: 80.25201039 | L99: 29107.4746 | M99: 858562.4035 | N99: 29861.50987 | O99: 987029.4 | P99: 106490.0673 | Q99: 644798.14 | R99: 167046.36 | S99: 1.391948963 | T99: 664.4191548 | U99: 268.41 | V99: 0 | W99: 84514.14 | X99: 44.39084524 | Y99: 6565.542733 | Z99: 0.08805103677 | AA99: 47.65 | AB99: 0 | AC99: 82776.96666 | AD99: 87643.35974 | AE99: 130436.4415 | AF99: 183321.3857 | AG99: 114386.4466 | AH99: 937.6833435 | AI99: 7973.440265 | AJ99: 17144.57849 | AK99: 123234.7243 | AL99: 59997.66345 | AM99: 0 | AN99: 0 | AO99: 0 | AP99: 0 | AQ99: 0 | AR99: 0 | AS99: 0 | AT99: 0 | AU99: 0 | AV99: 0 | AW99: 0 | AX99: 0 | AY99: 0 | AZ99: 0 | BA99: 0 | BB99: 0 | BC99: 0 | BD99: 0 | BE99: 0 | BF99: 0 | BG99: 0 | BH99: 0 | BI99: 0 | BJ99: 0 | BK99: 0 | BL99: 0 | BM99: 0 | BN99: 0 | BO99: 0 | BP99: 0 | BQ99: 0 | BR99: 0 | BS99: 0 | BT99: 0 | BU99: 0 | BV99: 0 | BW99: 0 | BX99: 0 | BY99: 0 | BZ99: 0 | CA99: 0 | CB99: 0 | CC99: 0 | CD99: 0 | CE99: 0 | CF99: 0 | CG99: 274630.9874
A100: 100 | H100: a | I100: צמוד מדד | J100: 3633833.657 | K100: 73.84149272 | L100: 26782.37422 | M100: 789980.577 | N100: 27476.17727 | O100: 911563.6 | P100: 91758.1024 | Q100: 582572.02 | R100: 143466.05 | S100: 0.7429997844 | T100: 0 | W100: 66934.24 | X100: 0 | Y100: 5657.2576 | Z100: 0.04700021557 | AC100: 73750.98148 | AD100: 77629.0329 | AE100: 120685.5585 | AF100: 165166.2864 | AG100: 101737.3276 | AH100: 835.4385246 | AI100: 7062.377099 | AJ100: 15862.92148 | AK100: 111030.2636 | AL100: 53362.98244 | CG100: 260445.4571
A101: 101 | H101: b | I101: לא צמוד | J101: 328009.8832 | K101: 5.689996512 | L101: 2063.766729 | M101: 60873.45423 | N101: 2117.229041 | O101: 66571.06 | P101: 13836.6167 | Q101: 56541.57 | R101: 22180.42 | S101: 0.6395441182 | T101: 664.4191548 | W101: 16926.78 | X101: 44.39084524 | Y101: 853.083302 | Z101: 0.04045588176 | AC101: 8306.347118 | AD101: 9256.84911 | AE101: 8573.268729 | AF101: 16543.45804 | AG101: 11656.39818 | AH101: 94.09288178 | AI101: 842.1508902 | AJ101: 1126.871271 | AK101: 11121.06196 | AL101: 6113.981822 | CG101: 11696.24323
A102: 102 | H102: c | I102: צמוד מט"ח | J102: 35721.77712 | K102: 0.7205211511 | L102: 261.3336539 | M102: 7708.372268 | N102: 268.1035573 | O102: 8894.74 | P102: 895.3481693 | Q102: 5684.55 | R102: 1399.89 | S102: 0.009405060562 | T102: 0 | U102: 268.41 | W102: 653.12 | X102: 0 | Y102: 55.20183072 | Z102: 0.0005949394376 | AA102: 47.65 | AC102: 719.6380629 | AD102: 757.4777241 | AE102: 1177.614267 | AF102: 1611.641234 | AG102: 992.7208158 | AH102: 8.151937093 | AI102: 68.91227588 | AJ102: 154.7857331 | AK102: 1083.398766 | AL102: 520.6991842 | CG102: 2489.287119
A103: 103 | H103: d | I103: אחר | J103: 0 | K103: 0 | L103: 0 | M103: 0 | N103: 0 | P103: 0 | S103: 0 | T103: 0 | X103: 0 | Y103: 0 | Z103: 0 | AC103: 0 | AD103: 0 | AE103: 0 | AF103: 0 | AG103: 0 | AH103: 0 | AI103: 0 | AJ103: 0 | AK103: 0 | AL103: 0 | CG103: 0
A104: 104 | G104: (ב) | H104: =$H$51 -> דרוג BBB- ועד A+ | J104: 1497928.361 | K104: 31.3083452 | L104: 11355.56428 | M104: 334946.9748 | N104: 11649.73257 | O104: 342526.84 | P104: 43995.01937 | Q104: 234584.88 | R104: 68143.94 | S104: 5.501960429 | T104: 967.4436326 | U104: 0 | V104: 0 | W104: 51095.89 | X104: 64.63636737 | Y104: 2712.470629 | Z104: 0.348039571 | AA104: 0 | AB104: 0 | AC104: 34869.43499 | AD104: 35213.7543 | AE104: 50135.74308 | AF104: 70288.37187 | AG104: 44760.7204 | AH104: 394.9950054 | AI104: 3203.605696 | AJ104: 6589.846919 | AK104: 47250.17813 | AL104: 23477.7696 | AM104: 0 | AN104: 0 | AO104: 0 | AP104: 0 | AQ104: 0 | AR104: 0 | AS104: 0 | AT104: 0 | AU104: 0 | AV104: 0 | AW104: 0 | AX104: 0 | AY104: 0 | AZ104: 0 | BA104: 0 | BB104: 0 | BC104: 0 | BD104: 0 | BE104: 0 | BF104: 0 | BG104: 0 | BH104: 0 | BI104: 0 | BJ104: 0 | BK104: 0 | BL104: 0 | BM104: 0 | BN104: 0 | BO104: 0 | BP104: 0 | BQ104: 0 | BR104: 0 | BS104: 0 | BT104: 0 | BU104: 0 | BV104: 0 | BW104: 0 | BX104: 0 | BY104: 0 | BZ104: 0 | CA104: 0 | CB104: 0 | CC104: 0 | CD104: 0 | CE104: 0 | CF104: 0 | CG104: 79663.39107
A105: 105 | H105: a | I105: צמוד מדד | J105: 790722.2286 | K105: 17.33978365 | L105: 6289.154748 | M105: 185506.7088 | N105: 6452.076627 | O105: 191072.08 | P105: 19582.21722 | Q105: 120078.1 | R105: 29374.07 | S105: 2.830923229 | T105: 0 | W105: 19350.15 | X105: 0 | Y105: 1207.322779 | Z105: 0.1790767707 | AC105: 17250.78604 | AD105: 16923.14991 | AE105: 28656.51491 | AF105: 35986.21861 | AG105: 21761.71518 | AH105: 195.4139586 | AI105: 1539.600094 | AJ105: 3766.615091 | AK105: 24191.13139 | AL105: 11414.39482 | CG105: 50104.45856
A106: 106 | H106: b | I106: לא צמוד | J106: 622780.6364 | K106: 12.25046704 | L106: 4443.255147 | M106: 131059.5258 | N106: 4558.358607 | O106: 130245.1 | P106: 22277.8317 | Q106: 100951.88 | R106: 35431.8 | S106: 2.652227079 | T106: 967.4436326 | W106: 30188.36 | X106: 64.63636737 | Y106: 1373.518299 | Z106: 0.1677729214 | AC106: 15902.65741 | AD106: 16484.38681 | AE106: 18671.19617 | AF106: 30459.17255 | AG106: 20631.84931 | AH106: 180.1425877 | AI106: 1499.683192 | AJ106: 2454.14383 | AK106: 20475.66745 | AL106: 10821.76069 | CG106: 23623.19639
A107: 107 | H107: c | I107: צמוד מט"ח | J107: 84425.49611 | K107: 1.71809451 | L107: 623.1543869 | M107: 18380.74019 | N107: 639.2973326 | O107: 21209.66 | P107: 2134.970449 | Q107: 13554.9 | R107: 3338.07 | S107: 0.01881012112 | T107: 0 | W107: 1557.38 | X107: 0 | Y107: 131.6295508 | Z107: 0.001189878875 | AC107: 1715.991541 | AD107: 1806.21759 | AE107: 2808.032002 | AF107: 3842.98072 | AG107: 2367.155911 | AH107: 19.43845916 | AI107: 164.3224097 | AJ107: 369.0879979 | AK107: 2583.37928 | AL107: 1241.614089 | CG107: 5935.736113
A108: 108 | H108: d | I108: אחר | J108: 0 | K108: 0 | L108: 0 | M108: 0 | N108: 0 | P108: 0 | S108: 0 | T108: 0 | X108: 0 | Y108: 0 | Z108: 0 | AC108: 0 | AD108: 0 | AE108: 0 | AF108: 0 | AG108: 0 | AH108: 0 | AI108: 0 | AJ108: 0 | AK108: 0 | AL108: 0 | CG108: 0
A109: 109 | G109: (ג) | H109: =$H$55 -> דרוג נמוך מ- BBB- או לא מדורג | J109: 51172.68 | K109: 1.33965196 | L109: 485.8929417 | M109: 14332.03731 | N109: 498.4801008 | O109: 11045.55 | P109: 1195.210449 | Q109: 6573.02 | R109: 1571.68 | S109: 0.6489491788 | T109: 0 | U109: 0 | V109: 0 | W109: 2082.28 | X109: 0 | Y109: 73.68955131 | Z109: 0.0410508212 | AA109: 0 | AB109: 0 | AC109: 1321.816686 | AD109: 1096.293617 | AE109: 2265.157482 | AF109: 2327.713603 | AG109: 1337.098685 | AH109: 14.97331371 | AI109: 99.73638273 | AJ109: 297.7325184 | AK109: 1564.766397 | AL109: 701.3313146 | AM109: 0 | AN109: 0 | AO109: 0 | AP109: 0 | AQ109: 0 | AR109: 0 | AS109: 0 | AT109: 0 | AU109: 0 | AV109: 0 | AW109: 0 | AX109: 0 | AY109: 0 | AZ109: 0 | BA109: 0 | BB109: 0 | BC109: 0 | BD109: 0 | BE109: 0 | BF109: 0 | BG109: 0 | BH109: 0 | BI109: 0 | BJ109: 0 | BK109: 0 | BL109: 0 | BM109: 0 | BN109: 0 | BO109: 0 | BP109: 0 | BQ109: 0 | BR109: 0 | BS109: 0 | BT109: 0 | BU109: 0 | BV109: 0 | BW109: 0 | BX109: 0 | BY109: 0 | BZ109: 0 | CA109: 0 | CB109: 0 | CC109: 0 | CD109: 0 | CE109: 0 | CF109: 0 | CG109: 2286.19
A110: 110 | H110: a | I110: צמוד מדד | J110: 28299.12 | K110: 0.740843648 | L110: 268.7046413 | M110: 7925.789023 | N110: 275.6654917 | O110: 6108.32 | P110: 660.9686154 | Q110: 3634.96 | R110: 869.16 | S110: 0.3573923014 | T110: 0 | W110: 1151.53 | X110: 0 | Y110: 40.75138462 | Z110: 0.02260769863 | AC110: 730.979588 | AD110: 606.2644953 | AE110: 1252.66022 | AF110: 1287.254662 | AG110: 739.4340773 | AH110: 8.280411953 | AI110: 55.15550468 | AJ110: 164.6497804 | AK110: 865.3353384 | AL110: 387.8459227 | CG110: 1264.29
A111: 111 | H111: b | I111: לא צמוד | J111: 22873.56 | K111: 0.5988083121 | L111: 217.1883004 | M111: 6406.248282 | N111: 222.8146091 | O111: 4937.23 | P111: 534.2418333 | Q111: 2938.06 | R111: 702.52 | S111: 0.2915568774 | T111: 0 | W111: 930.75 | X111: 0 | Y111: 32.93816669 | Z111: 0.01844312257 | AC111: 590.8370982 | AD111: 490.029122 | AE111: 1012.497262 | AF111: 1040.458942 | AG111: 597.6646082 | AH111: 6.692901759 | AI111: 44.58087805 | AJ111: 133.082738 | AK111: 699.4310583 | AL111: 313.4853918 | CG111: 1021.9
A112: 112 | H112: c | I112: צמוד מט"ח | J112: 0 | K112: 0 | L112: 0 | M112: 0 | N112: 0 | P112: 0 | S112: 0 | T112: 0 | X112: 0 | Y112: 0 | Z112: 0 | AC112: 0 | AD112: 0 | AE112: 0 | AF112: 0 | AG112: 0 | AH112: 0 | AI112: 0 | AJ112: 0 | AK112: 0 | AL112: 0 | CG112: 0
A113: 113 | H113: d | I113: אחר | J113: 0 | K113: 0 | L113: 0 | M113: 0 | N113: 0 | P113: 0 | S113: 0 | T113: 0 | X113: 0 | Y113: 0 | Z113: 0 | AC113: 0 | AD113: 0 | AE113: 0 | AF113: 0 | AG113: 0 | AH113: 0 | AI113: 0 | AJ113: 0 | AK113: 0 | AL113: 0 | CG113: 0
A114: 114 | F114: (2) | G114: לא סחיר | J114: 411516.7207 | K114: 18.65341351 | L114: 6765.60945 | M114: 199560.3531 | N114: 6940.873989 | O114: 86770.57 | P114: 8369.572079 | Q114: 22414.03 | R114: 1039.69 | S114: 0 | T114: 0 | U114: 2.2 | V114: 0 | W114: 3384.67 | X114: 0 | Y114: 516.0179212 | Z114: 0 | AA114: 12.57 | AB114: 0 | AC114: 6474.082697 | AD114: 6776.08871 | AE114: 9528.644098 | AF114: 13569.89552 | AG114: 4982.469067 | AH114: 73.33730329 | AI114: 616.4612895 | AJ114: 1252.445902 | AK114: 9122.134479 | AL114: 2613.390933 | AM114: 0 | AN114: 0 | AO114: 0 | AP114: 0 | AQ114: 0 | AR114: 0 | AS114: 0 | AT114: 0 | AU114: 0 | AV114: 0 | AW114: 0 | AX114: 0 | AY114: 0 | AZ114: 0 | BA114: 0 | BB114: 0 | BC114: 0 | BD114: 0 | BE114: 0 | BF114: 0 | BG114: 0 | BH114: 0 | BI114: 0 | BJ114: 0 | BK114: 0 | BL114: 0 | BM114: 0 | BN114: 0 | BO114: 0 | BP114: 0 | BQ114: 0 | BR114: 0 | BS114: 0 | BT114: 0 | BU114: 0 | BV114: 0 | BW114: 0 | BX114: 0 | BY114: 0 | BZ114: 0 | CA114: 0 | CB114: 0 | CC114: 0 | CD114: 0 | CE114: 0 | CF114: 0 | CG114: 20712.96071
A115: 115 | G115: (א) | H115: =$H$47 -> דרוג AA- ומעלה | J115: 398754.9898 | K115: 18.40896108 | L115: 6676.94634 | M115: 196945.1207 | N115: 6849.914042 | O115: 84714.16 | P115: 8366.143467 | Q115: 22323.66 | R115: 920.32 | S115: 0 | T115: 0 | U115: 2.2 | V115: 0 | W115: 3187.89 | X115: 0 | Y115: 515.8065334 | Z115: 0 | AA115: 12.57 | AB115: 0 | AC115: 5855.361465 | AD115: 6072.920157 | AE115: 8273.394259 | AF115: 12094.27598 | AG115: 4442.396461 | AH115: 66.32853483 | AI115: 552.4898435 | AJ115: 1087.455741 | AK115: 8130.174015 | AL115: 2330.113539 | AM115: 0 | AN115: 0 | AO115: 0 | AP115: 0 | AQ115: 0 | AR115: 0 | AS115: 0 | AT115: 0 | AU115: 0 | AV115: 0 | AW115: 0 | AX115: 0 | AY115: 0 | AZ115: 0 | BA115: 0 | BB115: 0 | BC115: 0 | BD115: 0 | BE115: 0 | BF115: 0 | BG115: 0 | BH115: 0 | BI115: 0 | BJ115: 0 | BK115: 0 | BL115: 0 | BM115: 0 | BN115: 0 | BO115: 0 | BP115: 0 | BQ115: 0 | BR115: 0 | BS115: 0 | BT115: 0 | BU115: 0 | BV115: 0 | BW115: 0 | BX115: 0 | BY115: 0 | BZ115: 0 | CA115: 0 | CB115: 0 | CC115: 0 | CD115: 0 | CE115: 0 | CF115: 0 | CG115: 19316.93982
A116: 116 | H116: a | I116: צמוד מדד | J116: 373995.817 | K116: 17.83610228 | L116: 6469.16995 | M116: 190816.4888 | N116: 6636.755161 | O116: 79226.8 | P116: 8227.256414 | Q116: 20375.2 | R116: 419.68 | S116: 0 | T116: 0 | W116: 2710.35 | X116: 0 | Y116: 507.2435857 | Z116: 0 | AC116: 4692.276691 | AD116: 5213.130372 | AE116: 6708.247323 | AF116: 10557.63027 | AG116: 3580.831919 | AH116: 53.15330911 | AI116: 474.269628 | AJ116: 881.7326768 | AK116: 7097.189729 | AL116: 1878.208081 | CG116: 17452.36702
A117: 117 | H117: b | I117: לא צמוד | J117: 17422.97392 | K117: 0.3609825371 | L117: 130.928683 | M117: 3861.909916 | N117: 134.3204182 | O117: 3200.96 | P117: 2.825779294 | Q117: 1220.27 | R117: 426.05 | S117: 0 | T117: 0 | W117: 451.14 | X117: 0 | Y117: 0.1742207061 | Z117: 0 | AC117: 928.9272705 | AD117: 744.241869 | AE117: 1353.62005 | AF117: 1314.236544 | AG117: 681.1402138 | AH117: 10.5227295 | AI117: 67.70813103 | AJ117: 177.9199502 | AK117: 883.4734559 | AL117: 357.2697862 | CG117: 1474.973918
A118: 118 | H118: c | I118: צמוד מט"ח | J118: 7336.198881 | K118: 0.2118762633 | L118: 76.84770664 | M118: 2266.721954 | N118: 78.83846268 | O118: 2286.4 | P118: 136.061273 | Q118: 728.19 | R118: 74.59 | S118: 0 | T118: 0 | U118: 2.2 | W118: 26.4 | X118: 0 | Y118: 8.388726997 | Z118: 0 | AA118: 12.57 | AC118: 234.1575038 | AD118: 115.5479155 | AE118: 211.5268857 | AF118: 222.4091693 | AG118: 180.4243287 | AH118: 2.652496219 | AI118: 10.51208448 | AJ118: 27.80311431 | AK118: 149.5108307 | AL118: 94.63567127 | CG118: 389.5988806
A119: 119 | H119: d | I119: אחר | J119: 0 | K119: 0 | L119: 0 | M119: 0 | N119: 0 | P119: 0 | S119: 0 | T119: 0 | X119: 0 | Y119: 0 | Z119: 0 | AC119: 0 | AD119: 0 | AE119: 0 | AF119: 0 | AG119: 0 | AH119: 0 | AI119: 0 | AJ119: 0 | AK119: 0 | AL119: 0 | CG119: 0
A120: 120 | G120: (ב) | H120: =$H$51 -> דרוג BBB- ועד A+ | J120: 12761.73089 | K120: 0.244452429 | L120: 88.66311053 | M120: 2615.23249 | N120: 90.95994709 | O120: 2056.41 | P120: 3.42861221 | Q120: 90.37 | R120: 119.37 | S120: 0 | T120: 0 | U120: 0 | V120: 0 | W120: 196.78 | X120: 0 | Y120: 0.21138779 | Z120: 0 | AA120: 0 | AB120: 0 | AC120: 618.7212315 | AD120: 703.1685539 | AE120: 1255.24984 | AF120: 1475.619536 | AG120: 540.0726062 | AH120: 7.008768459 | AI120: 63.97144607 | AJ120: 164.9901603 | AK120: 991.9604635 | AL120: 283.2773938 | AM120: 0 | AN120: 0 | AO120: 0 | AP120: 0 | AQ120: 0 | AR120: 0 | AS120: 0 | AT120: 0 | AU120: 0 | AV120: 0 | AW120: 0 | AX120: 0 | AY120: 0 | AZ120: 0 | BA120: 0 | BB120: 0 | BC120: 0 | BD120: 0 | BE120: 0 | BF120: 0 | BG120: 0 | BH120: 0 | BI120: 0 | BJ120: 0 | BK120: 0 | BL120: 0 | BM120: 0 | BN120: 0 | BO120: 0 | BP120: 0 | BQ120: 0 | BR120: 0 | BS120: 0 | BT120: 0 | BU120: 0 | BV120: 0 | BW120: 0 | BX120: 0 | BY120: 0 | BZ120: 0 | CA120: 0 | CB120: 0 | CC120: 0 | CD120: 0 | CE120: 0 | CF120: 0 | CG120: 1396.02089
A121: 121 | H121: a | I121: צמוד מדד | J121: 0 | K121: 0 | L121: 0 | M121: 0 | N121: 0 | P121: 0 | S121: 0 | T121: 0 | X121: 0 | Y121: 0 | Z121: 0 | AC121: 0 | AD121: 0 | AE121: 0 | AF121: 0 | AG121: 0 | AH121: 0 | AI121: 0 | AJ121: 0 | AK121: 0 | AL121: 0 | CG121: 0
A122: 122 | H122: b | I122: לא צמוד | J122: 12761.73089 | K122: 0.244452429 | L122: 88.66311053 | M122: 2615.23249 | N122: 90.95994709 | O122: 2056.41 | P122: 3.42861221 | Q122: 90.37 | R122: 119.37 | S122: 0 | T122: 0 | W122: 196.78 | X122: 0 | Y122: 0.21138779 | Z122: 0 | AC122: 618.7212315 | AD122: 703.1685539 | AE122: 1255.24984 | AF122: 1475.619536 | AG122: 540.0726062 | AH122: 7.008768459 | AI122: 63.97144607 | AJ122: 164.9901603 | AK122: 991.9604635 | AL122: 283.2773938 | CG122: 1396.02089
A123: 123 | H123: c | I123: צמוד מט"ח | J123: 0 | K123: 0 | L123: 0 | M123: 0 | N123: 0 | P123: 0 | S123: 0 | T123: 0 | X123: 0 | Y123: 0 | Z123: 0 | AC123: 0 | AD123: 0 | AE123: 0 | AF123: 0 | AG123: 0 | AH123: 0 | AI123: 0 | AJ123: 0 | AK123: 0 | AL123: 0 | CG123: 0
A124: 124 | H124: d | I124: אחר | J124: 0 | K124: 0 | L124: 0 | M124: 0 | N124: 0 | P124: 0 | S124: 0 | T124: 0 | X124: 0 | Y124: 0 | Z124: 0 | AC124: 0 | AD124: 0 | AE124: 0 | AF124: 0 | AG124: 0 | AH124: 0 | AI124: 0 | AJ124: 0 | AK124: 0 | AL124: 0 | CG124: 0
A125: 125 | G125: (ג) | H125: =$H$68 -> בדרוג נמוך מ- BBB- או לא מדורג עם בטוחה מספקת | J125: 0 | K125: 0 | L125: 0 | M125: 0 | N125: 0 | O125: 0 | P125: 0 | Q125: 0 | R125: 0 | S125: 0 | T125: 0 | U125: 0 | V125: 0 | W125: 0 | X125: 0 | Y125: 0 | Z125: 0 | AA125: 0 | AB125: 0 | AC125: 0 | AD125: 0 | AE125: 0 | AF125: 0 | AG125: 0 | AH125: 0 | AI125: 0 | AJ125: 0 | AK125: 0 | AL125: 0 | AM125: 0 | AN125: 0 | AO125: 0 | AP125: 0 | AQ125: 0 | AR125: 0 | AS125: 0 | AT125: 0 | AU125: 0 | AV125: 0 | AW125: 0 | AX125: 0 | AY125: 0 | AZ125: 0 | BA125: 0 | BB125: 0 | BC125: 0 | BD125: 0 | BE125: 0 | BF125: 0 | BG125: 0 | BH125: 0 | BI125: 0 | BJ125: 0 | BK125: 0 | BL125: 0 | BM125: 0 | BN125: 0 | BO125: 0 | BP125: 0 | BQ125: 0 | BR125: 0 | BS125: 0 | BT125: 0 | BU125: 0 | BV125: 0 | BW125: 0 | BX125: 0 | BY125: 0 | BZ125: 0 | CA125: 0 | CB125: 0 | CC125: 0 | CD125: 0 | CE125: 0 | CF125: 0 | CG125: 0
A126: 126 | H126: a | I126: צמוד מדד | J126: 0 | K126: 0 | L126: 0 | M126: 0 | N126: 0 | P126: 0 | S126: 0 | T126: 0 | X126: 0 | Y126: 0 | Z126: 0 | AC126: 0 | AD126: 0 | AE126: 0 | AF126: 0 | AG126: 0 | AH126: 0 | AI126: 0 | AJ126: 0 | AK126: 0 | AL126: 0 | CG126: 0
A127: 127 | H127: b | I127: לא צמוד | J127: 0 | K127: 0 | L127: 0 | M127: 0 | N127: 0 | P127: 0 | S127: 0 | T127: 0 | X127: 0 | Y127: 0 | Z127: 0 | AC127: 0 | AD127: 0 | AE127: 0 | AF127: 0 | AG127: 0 | AH127: 0 | AI127: 0 | AJ127: 0 | AK127: 0 | AL127: 0 | CG127: 0
A128: 128 | H128: c | I128: צמוד מט"ח | J128: 0 | K128: 0 | L128: 0 | M128: 0 | N128: 0 | P128: 0 | S128: 0 | T128: 0 | X128: 0 | Y128: 0 | Z128: 0 | AC128: 0 | AD128: 0 | AE128: 0 | AF128: 0 | AG128: 0 | AH128: 0 | AI128: 0 | AJ128: 0 | AK128: 0 | AL128: 0 | CG128: 0
A129: 129 | H129: d | I129: אחר | J129: 0 | K129: 0 | L129: 0 | M129: 0 | N129: 0 | P129: 0 | S129: 0 | T129: 0 | X129: 0 | Y129: 0 | Z129: 0 | AC129: 0 | AD129: 0 | AE129: 0 | AF129: 0 | AG129: 0 | AH129: 0 | AI129: 0 | AJ129: 0 | AK129: 0 | AL129: 0 | CG129: 0
A130: 130 | G130: (ד) | H130: =$H$55 -> דרוג נמוך מ- BBB- או לא מדורג | J130: 0 | K130: 0 | L130: 0 | M130: 0 | N130: 0 | O130: 0 | P130: 0 | Q130: 0 | R130: 0 | S130: 0 | T130: 0 | U130: 0 | V130: 0 | W130: 0 | X130: 0 | Y130: 0 | Z130: 0 | AA130: 0 | AB130: 0 | AC130: 0 | AD130: 0 | AE130: 0 | AF130: 0 | AG130: 0 | AH130: 0 | AI130: 0 | AJ130: 0 | AK130: 0 | AL130: 0 | AM130: 0 | AN130: 0 | AO130: 0 | AP130: 0 | AQ130: 0 | AR130: 0 | AS130: 0 | AT130: 0 | AU130: 0 | AV130: 0 | AW130: 0 | AX130: 0 | AY130: 0 | AZ130: 0 | BA130: 0 | BB130: 0 | BC130: 0 | BD130: 0 | BE130: 0 | BF130: 0 | BG130: 0 | BH130: 0 | BI130: 0 | BJ130: 0 | BK130: 0 | BL130: 0 | BM130: 0 | BN130: 0 | BO130: 0 | BP130: 0 | BQ130: 0 | BR130: 0 | BS130: 0 | BT130: 0 | BU130: 0 | BV130: 0 | BW130: 0 | BX130: 0 | BY130: 0 | BZ130: 0 | CA130: 0 | CB130: 0 | CC130: 0 | CD130: 0 | CE130: 0 | CF130: 0 | CG130: 0
A131: 131 | H131: a | I131: צמוד מדד | J131: 0 | K131: 0 | L131: 0 | M131: 0 | N131: 0 | O131: 0 | P131: 0 | Q131: 0 | R131: 0 | S131: 0 | T131: 0 | W131: 0 | X131: 0 | Y131: 0 | Z131: 0 | AC131: 0 | AD131: 0 | AE131: 0 | AF131: 0 | AG131: 0 | AH131: 0 | AI131: 0 | AJ131: 0 | AK131: 0 | AL131: 0 | CG131: 0
A132: 132 | H132: b | I132: לא צמוד | J132: 0 | K132: 0 | L132: 0 | M132: 0 | N132: 0 | P132: 0 | S132: 0 | T132: 0 | X132: 0 | Y132: 0 | Z132: 0 | AC132: 0 | AD132: 0 | AE132: 0 | AF132: 0 | AG132: 0 | AH132: 0 | AI132: 0 | AJ132: 0 | AK132: 0 | AL132: 0 | CG132: 0
A133: 133 | H133: c | I133: צמוד מט"ח | J133: 0 | K133: 0 | L133: 0 | M133: 0 | N133: 0 | P133: 0 | S133: 0 | T133: 0 | X133: 0 | Y133: 0 | Z133: 0 | AC133: 0 | AD133: 0 | AE133: 0 | AF133: 0 | AG133: 0 | AH133: 0 | AI133: 0 | AJ133: 0 | AK133: 0 | AL133: 0 | CG133: 0
A134: 134 | H134: d | I134: אחר | J134: 0 | K134: 0 | L134: 0 | M134: 0 | N134: 0 | P134: 0 | S134: 0 | T134: 0 | X134: 0 | Y134: 0 | Z134: 0 | AC134: 0 | AD134: 0 | AE134: 0 | AF134: 0 | AG134: 0 | AH134: 0 | AI134: 0 | AJ134: 0 | AK134: 0 | AL134: 0 | CG134: 0
A135: 135 | E135: ב) | F135: בחו"ל | J135: 2656827.855 | K135: 48.5932449 | L135: 17624.81257 | M135: 519866.5171 | N135: 18081.38706 | O135: 534572.71 | P135: 44053.5601 | Q135: 245640.9 | R135: 49405.05 | S135: 4.241682314 | T135: 0 | U135: 611567.8 | V135: 0 | W135: 46507.19 | X135: 0 | Y135: 2716.079901 | Z135: 0.2683176864 | AA135: 48245.09 | AB135: 0 | AC135: 43233.48843 | AD135: 53504.99116 | AE135: 58886.98853 | AF135: 68199.75171 | AG135: 45604.64001 | AH135: 489.7415744 | AI135: 4867.668837 | AJ135: 7740.111467 | AK135: 45846.13829 | AL135: 23920.41999 | AM135: 0 | AN135: 0 | AO135: 0 | AP135: 0 | AQ135: 0 | AR135: 0 | AS135: 0 | AT135: 2129.78 | AU135: 0 | AV135: 0 | AW135: 0 | AX135: 0 | AY135: 0 | AZ135: 0 | BA135: 0 | BB135: 0 | BC135: 0 | BD135: 0 | BE135: 0 | BF135: 0 | BG135: 0 | BH135: 0 | BI135: 0 | BJ135: 0 | BK135: 0 | BL135: 0 | BM135: 0 | BN135: 0 | BO135: 0 | BP135: 0 | BQ135: 0 | BR135: 0 | BS135: 0 | BT135: 0 | BU135: 0 | BV135: 0 | BW135: 0 | BX135: 0 | BY135: 0 | BZ135: 0 | CA135: 0 | CB135: 0 | CC135: 0 | CD135: 0 | CE135: 0 | CF135: 0 | CG135: 164069.9346
A136: 136 | F136: (1) | G136: סחיר - חברות ישראליות | J136: 210992.2001 | K136: 4.889958137 | L136: 1773.592108 | M136: 52314.38055 | N136: 1819.537385 | O136: 54281.98 | P136: 6482.516666 | Q136: 30757.7 | R136: 7651.45 | S136: 0.02821518169 | T136: 0 | U136: 285 | V136: 0 | W136: 3447.36 | X136: 0 | Y136: 399.6733337 | Z136: 0.001784818313 | AA136: 94.22 | AB136: 0 | AC136: 3673.774114 | AD136: 3793.584907 | AE136: 6006.027204 | AF136: 8066.608107 | AG136: 4923.440545 | AH136: 41.61588584 | AI136: 345.1250926 | AJ136: 789.4327964 | AK136: 5422.641893 | AL136: 2582.429455 | AM136: 0 | AN136: 0 | AO136: 0 | AP136: 0 | AQ136: 0 | AR136: 0 | AS136: 0 | AT136: 0 | AU136: 0 | AV136: 0 | AW136: 0 | AX136: 0 | AY136: 0 | AZ136: 0 | BA136: 0 | BB136: 0 | BC136: 0 | BD136: 0 | BE136: 0 | BF136: 0 | BG136: 0 | BH136: 0 | BI136: 0 | BJ136: 0 | BK136: 0 | BL136: 0 | BM136: 0 | BN136: 0 | BO136: 0 | BP136: 0 | BQ136: 0 | BR136: 0 | BS136: 0 | BT136: 0 | BU136: 0 | BV136: 0 | BW136: 0 | BX136: 0 | BY136: 0 | BZ136: 0 | CA136: 0 | CB136: 0 | CC136: 0 | CD136: 0 | CE136: 0 | CF136: 0 | CG136: 16035.19009
A137: 137 | G137: (א) | H137: =$H$78 -> דרוג A- ומעלה | J137: 0 | K137: 0 | L137: 0 | M137: 0 | N137: 0 | P137: 0 | S137: 0 | T137: 0 | X137: 0 | Y137: 0 | Z137: 0 | AC137: 0 | AD137: 0 | AE137: 0 | AF137: 0 | AG137: 0 | AH137: 0 | AI137: 0 | AJ137: 0 | AK137: 0 | AL137: 0 | CG137: 0
A138: 138 | G138: (ב) | H138: =$H$79 -> דרוג BBB- ועד BBB+ | J138: 98672.59762 | K138: 2.604206798 | L138: 944.5480912 | M138: 27860.66089 | N138: 969.0168085 | O138: 26064.67 | P138: 3642.156351 | Q138: 12724.27 | R138: 3210.48 | S138: 0.009405060562 | T138: 0 | U138: 285 | W138: 1375.42 | X138: 0 | Y138: 224.5536488 | Z138: 0.0005949394376 | AA138: 94.22 | AC138: 1390.824972 | AD138: 1390.58974 | AE138: 2270.221824 | AF138: 2953.912145 | AG138: 1774.174752 | AH138: 15.75502779 | AI138: 126.51026 | AJ138: 298.3981761 | AK138: 1985.717855 | AL138: 930.5852477 | CG138: 8138.297617
A139: =A138+1 -> 139 | G139: (ג) | H139: =$H$80 -> דרוג נמוך מ- BBB- או לא מדורג | J139: 112319.6025 | K139: 2.285751339 | L139: 829.0440169 | M139: 24453.71965 | N139: 850.5205769 | O139: 28217.31 | P139: 2840.360315 | Q139: 18033.43 | R139: 4440.97 | S139: 0.01881012112 | T139: 0 | W139: 2071.94 | X139: 0 | Y139: 175.1196849 | Z139: 0.001189878875 | AC139: 2282.949142 | AD139: 2402.995167 | AE139: 3735.80538 | AF139: 5112.695962 | AG139: 3149.265793 | AH139: 25.86085805 | AI139: 218.6148327 | AJ139: 491.0346204 | AK139: 3436.924038 | AL139: 1651.844207 | CG139: 7896.892472
A140: 140 | F140: (2) | G140: לא סחיר - חברות ישראליות | J140: 0 | K140: 0 | L140: 0 | M140: 0 | N140: 0 | O140: 0 | P140: 0 | Q140: 0 | R140: 0 | S140: 0 | T140: 0 | U140: 0 | V140: 0 | W140: 0 | X140: 0 | Y140: 0 | Z140: 0 | AA140: 0 | AB140: 0 | AC140: 0 | AD140: 0 | AE140: 0 | AF140: 0 | AG140: 0 | AH140: 0 | AI140: 0 | AJ140: 0 | AK140: 0 | AL140: 0 | AM140: 0 | AN140: 0 | AO140: 0 | AP140: 0 | AQ140: 0 | AR140: 0 | AS140: 0 | AT140: 0 | AU140: 0 | AV140: 0 | AW140: 0 | AX140: 0 | AY140: 0 | AZ140: 0 | BA140: 0 | BB140: 0 | BC140: 0 | BD140: 0 | BE140: 0 | BF140: 0 | BG140: 0 | BH140: 0 | BI140: 0 | BJ140: 0 | BK140: 0 | BL140: 0 | BM140: 0 | BN140: 0 | BO140: 0 | BP140: 0 | BQ140: 0 | BR140: 0 | BS140: 0 | BT140: 0 | BU140: 0 | BV140: 0 | BW140: 0 | BX140: 0 | BY140: 0 | BZ140: 0 | CA140: 0 | CB140: 0 | CC140: 0 | CD140: 0 | CE140: 0 | CF140: 0 | CG140: 0
A141: 141 | G141: (א) | H141: =$H$78 -> דרוג A- ומעלה | J141: 0 | K141: 0 | L141: 0 | M141: 0 | N141: 0 | P141: 0 | S141: 0 | T141: 0 | X141: 0 | Y141: 0 | Z141: 0 | AC141: 0 | AD141: 0 | AE141: 0 | AF141: 0 | AG141: 0 | AH141: 0 | AI141: 0 | AJ141: 0 | AK141: 0 | AL141: 0 | CG141: 0
A142: 142 | G142: (ב) | H142: =$H$79 -> דרוג BBB- ועד BBB+ | J142: 0 | K142: 0 | L142: 0 | M142: 0 | N142: 0 | P142: 0 | S142: 0 | T142: 0 | X142: 0 | Y142: 0 | Z142: 0 | AC142: 0 | AD142: 0 | AE142: 0 | AF142: 0 | AG142: 0 | AH142: 0 | AI142: 0 | AJ142: 0 | AK142: 0 | AL142: 0 | CG142: 0
A143: 143 | G143: (ג) | H143: =$H$68 -> בדרוג נמוך מ- BBB- או לא מדורג עם בטוחה מספקת | J143: 0 | K143: 0 | L143: 0 | M143: 0 | N143: 0 | P143: 0 | S143: 0 | T143: 0 | X143: 0 | Y143: 0 | Z143: 0 | AC143: 0 | AD143: 0 | AE143: 0 | AF143: 0 | AG143: 0 | AH143: 0 | AI143: 0 | AJ143: 0 | AK143: 0 | AL143: 0 | CG143: 0
A144: 144 | G144: (ד) | H144: =H139 -> דרוג נמוך מ- BBB- או לא מדורג | J144: 0 | K144: 0 | L144: 0 | M144: 0 | N144: 0 | P144: 0 | S144: 0 | T144: 0 | X144: 0 | Y144: 0 | Z144: 0 | AC144: 0 | AD144: 0 | AE144: 0 | AF144: 0 | AG144: 0 | AH144: 0 | AI144: 0 | AJ144: 0 | AK144: 0 | AL144: 0 | CG144: 0
A145: 145 | F145: (3) | G145: סחיר - חברות זרות | J145: 2319701.587 | K145: 40.06041557 | L145: 14529.94789 | M145: 428579.5024 | N145: 14906.34925 | O145: 440979.73 | P145: 35231.63727 | Q145: 202363.08 | R145: 40471.2 | S145: 4.213467132 | T145: 0 | U145: 611244.95 | V145: 0 | W145: 42606 | X145: 0 | Y145: 2172.172729 | Z145: 0.2665328681 | AA145: 47934.82 | AB145: 0 | AC145: 35533.72009 | AD145: 47724.74473 | AE145: 49244.10065 | AF145: 56309.20927 | AG145: 37579.04367 | AH145: 402.5199135 | AI145: 4341.805271 | AJ145: 6472.649351 | AK145: 37852.92073 | AL145: 19710.85633 | AM145: 0 | AN145: 0 | AO145: 0 | AP145: 0 | AQ145: 0 | AR145: 0 | AS145: 0 | AT145: 2129.78 | AU145: 0 | AV145: 0 | AW145: 0 | AX145: 0 | AY145: 0 | AZ145: 0 | BA145: 0 | BB145: 0 | BC145: 0 | BD145: 0 | BE145: 0 | BF145: 0 | BG145: 0 | BH145: 0 | BI145: 0 | BJ145: 0 | BK145: 0 | BL145: 0 | BM145: 0 | BN145: 0 | BO145: 0 | BP145: 0 | BQ145: 0 | BR145: 0 | BS145: 0 | BT145: 0 | BU145: 0 | BV145: 0 | BW145: 0 | BX145: 0 | BY145: 0 | BZ145: 0 | CA145: 0 | CB145: 0 | CC145: 0 | CD145: 0 | CE145: 0 | CF145: 0 | CG145: 141336.307
A146: 146 | G146: (א) | H146: =$H$78 -> דרוג A- ומעלה | J146: 362979.7374 | K146: 6.267323516 | L146: 2273.16374 | M146: 67049.88841 | N146: 2332.050526 | O146: 68998.69 | P146: 5513.566366 | Q146: 31666.65 | R146: 6332.99 | S146: 0 | T146: 0 | U146: 95656.47 | W146: 6667.61 | X146: 0 | Y146: 339.9336343 | Z146: 0 | AA146: 7501.55 | AC146: 5560.768563 | AD146: 7468.652081 | AE146: 7706.355843 | AF146: 8812.03643 | AG146: 5880.923976 | AH146: 62.99143674 | AI146: 679.4679187 | AJ146: 1012.924157 | AK146: 5923.74357 | AL146: 3084.646024 | AT146: 333.3 | CG146: 22115.09742
A147: 147 | G147: (ב) | H147: =$H$79 -> דרוג BBB- ועד BBB+ | J147: 1551581.234 | K147: 26.79009538 | L147: 9716.791108 | M147: 286609.2522 | N147: 9968.50663 | O147: 294939.54 | P147: 23568.10137 | Q147: 135361.23 | R147: 27070.8 | S147: 0 | T147: 0 | U147: 408889.98 | W147: 28501.17 | X147: 0 | Y147: 1453.068635 | Z147: 0 | AA147: 32065.86 | AC147: 23769.88876 | AD147: 31925.2401 | AE147: 32941.3551 | AF147: 37667.64676 | AG147: 25138.39066 | AH147: 269.261241 | AI147: 2904.429903 | AJ147: 4329.8149 | AK147: 25321.44324 | AL147: 13185.51934 | AT147: 1424.71 | CG147: 94532.44387
A148: 148 | G148: (ג) | H148: =$H$80 -> דרוג נמוך מ- BBB- או לא מדורג | J148: 405140.6157 | K148: 7.002996677 | L148: 2539.993041 | M148: 74920.36187 | N148: 2605.792096 | O148: 77041.5 | P148: 6149.96954 | Q148: 35335.2 | R148: 7067.41 | S148: 4.213467132 | T148: 0 | U148: 106698.5 | W148: 7437.22 | X148: 0 | Y148: 379.1704603 | Z148: 0.2665328681 | AA148: 8367.41 | AC148: 6203.062764 | AD148: 8330.852551 | AE148: 8596.389706 | AF148: 9829.526087 | AG148: 6559.729025 | AH148: 70.26723577 | AI148: 757.9074487 | AJ148: 1129.910294 | AK148: 6607.733913 | AL148: 3440.690975 | AT148: 371.77 | CG148: 24688.76571
A149: 149 | F149: (4) | G149: לא סחיר - חברות זרות | J149: 126134.0675 | K149: 3.642871184 | L149: 1321.272576 | M149: 38972.63413 | N149: 1355.50042 | O149: 39311 | P149: 2339.406162 | Q149: 12520.12 | R149: 1282.4 | S149: 0 | T149: 0 | U149: 37.85 | V149: 0 | W149: 453.83 | X149: 0 | Y149: 144.2338381 | Z149: 0 | AA149: 216.05 | AB149: 0 | AC149: 4025.994225 | AD149: 1986.661527 | AE149: 3636.86068 | AF149: 3823.934333 | AG149: 3102.155797 | AH149: 45.60577511 | AI149: 180.738473 | AJ149: 478.0293195 | AK149: 2570.575667 | AL149: 1627.134203 | AM149: 0 | AN149: 0 | AO149: 0 | AP149: 0 | AQ149: 0 | AR149: 0 | AS149: 0 | AT149: 0 | AU149: 0 | AV149: 0 | AW149: 0 | AX149: 0 | AY149: 0 | AZ149: 0 | BA149: 0 | BB149: 0 | BC149: 0 | BD149: 0 | BE149: 0 | BF149: 0 | BG149: 0 | BH149: 0 | BI149: 0 | BJ149: 0 | BK149: 0 | BL149: 0 | BM149: 0 | BN149: 0 | BO149: 0 | BP149: 0 | BQ149: 0 | BR149: 0 | BS149: 0 | BT149: 0 | BU149: 0 | BV149: 0 | BW149: 0 | BX149: 0 | BY149: 0 | BZ149: 0 | CA149: 0 | CB149: 0 | CC149: 0 | CD149: 0 | CE149: 0 | CF149: 0 | CG149: 6698.437473
A150: 150 | G150: (א) | H150: =$H$78 -> דרוג A- ומעלה | J150: 0 | K150: 0 | L150: 0 | M150: 0 | N150: 0 | P150: 0 | S150: 0 | T150: 0 | X150: 0 | Y150: 0 | Z150: 0 | AC150: 0 | AD150: 0 | AE150: 0 | AF150: 0 | AG150: 0 | AH150: 0 | AI150: 0 | AJ150: 0 | AK150: 0 | AL150: 0 | CG150: 0
A151: 151 | G151: (ב) | H151: =$H$79 -> דרוג BBB- ועד BBB+ | J151: 0 | K151: 0 | L151: 0 | M151: 0 | N151: 0 | P151: 0 | S151: 0 | T151: 0 | X151: 0 | Y151: 0 | Z151: 0 | AC151: 0 | AD151: 0 | AE151: 0 | AF151: 0 | AG151: 0 | AH151: 0 | AI151: 0 | AJ151: 0 | AK151: 0 | AL151: 0 | CG151: 0
A152: 152 | G152: (ג) | H152: =$H$68 -> בדרוג נמוך מ- BBB- או לא מדורג עם בטוחה מספקת | J152: 0 | K152: 0 | L152: 0 | M152: 0 | N152: 0 | P152: 0 | S152: 0 | T152: 0 | X152: 0 | Y152: 0 | Z152: 0 | AC152: 0 | AD152: 0 | AE152: 0 | AF152: 0 | AG152: 0 | AH152: 0 | AI152: 0 | AJ152: 0 | AK152: 0 | AL152: 0 | CG152: 0
A153: 153 | G153: (ד) | H153: =H148 -> דרוג נמוך מ- BBB- או לא מדורג | J153: 126134.0675 | K153: 3.642871184 | L153: 1321.272576 | M153: 38972.63413 | N153: 1355.50042 | O153: 39311 | P153: 2339.406162 | Q153: 12520.12 | R153: 1282.4 | S153: 0 | T153: 0 | U153: 37.85 | W153: 453.83 | X153: 0 | Y153: 144.2338381 | Z153: 0 | AA153: 216.05 | AC153: 4025.994225 | AD153: 1986.661527 | AE153: 3636.86068 | AF153: 3823.934333 | AG153: 3102.155797 | AH153: 45.60577511 | AI153: 180.738473 | AJ153: 478.0293195 | AK153: 2570.575667 | AL153: 1627.134203 | CG153: 6698.437473
A154: 154 | AC154: 0 | AD154: 0 | AE154: 0 | AF154: 0 | AG154: 0 | AH154: 0 | AI154: 0 | AJ154: 0 | AK154: 0 | AL154: 0 | CG154: 0
A155: 155 | D155: 4) | E155: מניות (למעט חברות מוחזקות) | J155: 12377368.11 | K155: 401.9012247 | L155: 145769.9269 | M155: 4299671.494 | N155: 149546.1276 | O155: 3702235.21 | P155: 35750.54454 | Q155: 332809.21 | R155: 51712.05 | S155: 1167859.598 | T155: 0 | U155: 99758.83 | V155: 0 | W155: 721.1 | X155: 0 | Y155: 2204.165458 | Z155: 73875.73189 | AA155: 429.48 | AB155: 0 | AC155: 589207.7057 | AD155: 280272.3859 | AE155: 189141.2463 | AF155: 411409.0154 | AG155: 88853.9836 | AH155: 6674.444279 | AI155: 25498.05409 | AJ155: 24860.7437 | AK155: 276562.8046 | AL155: 46605.4464 | AM155: 61837.86 | AN155: 0 | AO155: 0 | AP155: 0 | AQ155: 0 | AR155: 0 | AS155: 0 | AT155: 211.01 | AU155: 4636.05 | AV155: 0 | AW155: 0 | AX155: 0 | AY155: 0 | AZ155: 0 | BA155: 0 | BB155: 0 | BC155: 0 | BD155: 0 | BE155: 0 | BF155: 0 | BG155: 0 | BH155: 0 | BI155: 0 | BJ155: 0 | BK155: 0 | BL155: 0 | BM155: 0 | BN155: 0 | BO155: 0 | BP155: 0 | BQ155: 0 | BR155: 0 | BS155: 0 | BT155: 0 | BU155: 0 | BV155: 0 | BW155: 0 | BX155: 0 | BY155: 0 | BZ155: 0 | CA155: 0 | CB155: 0 | CC155: 0 | CD155: 0 | CE155: 0 | CF155: 0 | CG155: 308851.9872
A156: 156 | E156: א) | F156: בישראל | J156: 7981876.668 | K156: 268.96369 | L156: 97553.36643 | M156: 2877462.023 | N156: 100080.5069 | O156: 2360554.5 | P156: 2296.53909 | Q156: 117585.09 | R156: 16740.33 | S156: 872578.6741 | T156: 0 | U156: 2566.28 | V156: 0 | W156: 323.17 | X156: 0 | Y156: 141.59091 | Z156: 55197.03592 | AA156: 0 | AB156: 0 | AC156: 391934.0184 | AD156: 188541.9884 | AE156: 121373.1159 | AF156: 273263.7207 | AG156: 51254.9336 | AH156: 4439.761634 | AI156: 17152.79157 | AJ156: 15953.29409 | AK156: 183696.9493 | AL156: 26884.0964 | AM156: 32115.79 | AN156: 0 | AO156: 0 | AP156: 0 | AQ156: 0 | AR156: 0 | AS156: 0 | AT156: 0 | AU156: 0 | AV156: 0 | AW156: 0 | AX156: 0 | AY156: 0 | AZ156: 0 | BA156: 0 | BB156: 0 | BC156: 0 | BD156: 0 | BE156: 0 | BF156: 0 | BG156: 0 | BH156: 0 | BI156: 0 | BJ156: 0 | BK156: 0 | BL156: 0 | BM156: 0 | BN156: 0 | BO156: 0 | BP156: 0 | BQ156: 0 | BR156: 0 | BS156: 0 | BT156: 0 | BU156: 0 | BV156: 0 | BW156: 0 | BX156: 0 | BY156: 0 | BZ156: 0 | CA156: 0 | CB156: 0 | CC156: 0 | CD156: 0 | CE156: 0 | CF156: 0 | CG156: 171918.1378
A157: 157 | F157: (1) | G157: סחיר | J157: 7124417.938 | K157: 233.0984773 | L157: 84545.02229 | M157: 2493764.18 | N157: 86735.17891 | O157: 2175491.8 | P157: 0.4332861584 | Q157: 67679.56 | R157: 994.57 | S157: 862996.9677 | T157: 0 | U157: 0 | V157: 0 | W157: 323.17 | X157: 0 | Y157: 0.0267138416 | Z157: 54590.92233 | AA157: 0 | AB157: 0 | AC157: 363174.2145 | AD157: 171673.0194 | AE157: 103718.5091 | AF157: 254062.4636 | AG157: 41174.11616 | AH157: 4113.975487 | AI157: 15618.12063 | AJ157: 13632.77087 | AK157: 170789.2264 | AL157: 21596.53384 | AM157: 30063.95 | AN157: 0 | AO157: 0 | AP157: 0 | AQ157: 0 | AR157: 0 | AS157: 0 | AT157: 0 | AU157: 0 | AV157: 0 | AW157: 0 | AX157: 0 | AY157: 0 | AZ157: 0 | BA157: 0 | BB157: 0 | BC157: 0 | BD157: 0 | BE157: 0 | BF157: 0 | BG157: 0 | BH157: 0 | BI157: 0 | BJ157: 0 | BK157: 0 | BL157: 0 | BM157: 0 | BN157: 0 | BO157: 0 | BP157: 0 | BQ157: 0 | BR157: 0 | BS157: 0 | BT157: 0 | BU157: 0 | BV157: 0 | BW157: 0 | BX157: 0 | BY157: 0 | BZ157: 0 | CA157: 0 | CB157: 0 | CC157: 0 | CD157: 0 | CE157: 0 | CF157: 0 | CG157: 107446.1078
A158: 158 | G158: (א) | H158: ='[1]טופס 106 חודשי'!H158 -> ת"א 35 | J158: 4469025.041 | K158: 145.2563051 | L158: 52684.58935 | M158: 1553999.73 | N158: 54049.39474 | O158: 1373232.5 | P158: 0 | Q158: 40598.47 | R158: 6.36 | S158: 545896.0868 | T158: 0 | U158: 0 | V158: 0 | W158: 247.4 | X158: 0 | Y158: 0 | Z158: 34531.95317 | AA158: 0 | AB158: 0 | AC158: 229728.9497 | AD158: 108593.2161 | AE158: 65608.01603 | AF158: 160709.3842 | AG158: 26045.03833 | AH158: 2602.330314 | AI158: 9879.373911 | AJ158: 8623.523971 | AK158: 108034.1858 | AL158: 13661.07167 | AM158: 19017.21 | AN158: 0 | AO158: 0 | AP158: 0 | AQ158: 0 | AR158: 0 | AS158: 0 | AT158: 0 | AU158: 0 | AV158: 0 | AW158: 0 | AX158: 0 | AY158: 0 | AZ158: 0 | BA158: 0 | BB158: 0 | BC158: 0 | BD158: 0 | BE158: 0 | BF158: 0 | BG158: 0 | BH158: 0 | BI158: 0 | BJ158: 0 | BK158: 0 | BL158: 0 | BM158: 0 | BN158: 0 | BO158: 0 | BP158: 0 | BQ158: 0 | BR158: 0 | BS158: 0 | BT158: 0 | BU158: 0 | BV158: 0 | BW158: 0 | BX158: 0 | BY158: 0 | BZ158: 0 | CA158: 0 | CB158: 0 | CC158: 0 | CD158: 0 | CE158: 0 | CF158: 0 | CG158: 61131.00141
A159: 159 | H159: a | I159: מניות | J159: 4469025.041 | K159: 145.2563051 | L159: 52684.58935 | M159: 1553999.73 | N159: 54049.39474 | O159: 1373232.5 | P159: 0 | Q159: 40598.47 | R159: 6.36 | S159: 545896.0868 | T159: 0 | W159: 247.4 | X159: 0 | Y159: 0 | Z159: 34531.95317 | AC159: 229728.9497 | AD159: 108593.2161 | AE159: 65608.01603 | AF159: 160709.3842 | AG159: 26045.03833 | AH159: 2602.330314 | AI159: 9879.373911 | AJ159: 8623.523971 | AK159: 108034.1858 | AL159: 13661.07167 | AM159: 19017.21 | CG159: 61131.00141
A160: 160 | H160: b | I160: אופציה 001 Call ח (Long) | J160: 0 | K160: 0 | L160: 0 | M160: 0 | N160: 0 | P160: 0 | S160: 0 | T160: 0 | X160: 0 | Y160: 0 | Z160: 0 | AC160: 0 | AD160: 0 | AE160: 0 | AF160: 0 | AG160: 0 | AH160: 0 | AI160: 0 | AJ160: 0 | AK160: 0 | AL160: 0 | CG160: 0
A161: 161 | H161: c | I161: אופציה 001 Call ח (Short) | J161: 0 | K161: 0 | L161: 0 | M161: 0 | N161: 0 | P161: 0 | S161: 0 | T161: 0 | X161: 0 | Y161: 0 | Z161: 0 | AC161: 0 | AD161: 0 | AE161: 0 | AF161: 0 | AG161: 0 | AH161: 0 | AI161: 0 | AJ161: 0 | AK161: 0 | AL161: 0 | CG161: 0
A162: 162 | G162: (ב) | H162: ='[1]טופס 106 חודשי'!H162 -> ת"א 90 | J162: 2033192.289 | K162: 66.17646821 | L162: 24002.2631 | M162: 707977.6236 | N162: 24624.04679 | O162: 620245.55 | P162: 0 | Q162: 21699.99 | R162: 987.37 | S162: 244745.615 | T162: 0 | W162: 73.28 | X162: 0 | Y162: 0 | Z162: 15481.96501 | AC162: 102996.078 | AD162: 48686.4066 | AE162: 29414.52234 | AF162: 72052.01942 | AG162: 11676.96862 | AH162: 1166.721984 | AI162: 4429.293399 | AJ162: 3866.247661 | AK162: 48435.76058 | AL162: 6124.771376 | AM162: 8526.11 | CG162: 35913.50924
A163: 163 | G163: (ג) | H163: מניות היתר | J163: 414150.1461 | K163: 14.90312878 | L163: 5405.37789 | M163: 159438.5736 | N163: 5545.405343 | O163: 118081.32 | P163: 0 | Q163: 3490.99 | R163: 0.54 | S163: 46940.44095 | T163: 0 | W163: 1.61 | X163: 0 | Y163: 0 | Z163: 2969.32905 | AC163: 19753.89129 | AD163: 9337.712485 | AE163: 5641.509452 | AF163: 13819.04737 | AG163: 2239.554861 | AH163: 223.7687074 | AI163: 849.5075147 | AJ163: 741.5205479 | AK163: 9289.622628 | AL163: 1174.685139 | AM163: 1635.26 | CG163: 7555.576086
A164: 164 | G164: (ד) | H164: מניות זרות הנסחרות בארץ | J164: 208050.4611 | K164: 6.762575164 | L164: 2452.791947 | M164: 72348.25344 | N164: 2516.332039 | O164: 63932.43 | P164: 0.4332861584 | Q164: 1890.11 | R164: 0.3 | S164: 25414.8249 | T164: 0 | W164: 0.88 | X164: 0 | Y164: 0.0267138416 | Z164: 1607.675095 | AC164: 10695.29552 | AD164: 5055.684192 | AE164: 3054.46131 | AF164: 7482.012614 | AG164: 1212.554341 | AH164: 121.1544813 | AI164: 459.9458079 | AJ164: 401.47869 | AK164: 5029.657386 | AL164: 636.0056587 | AM164: 885.37 | CG164: 2846.021101
A165: 165 | F165: (2) | G165: לא סחיר | J165: 857458.73 | K165: 35.86521274 | L165: 13008.34414 | M165: 383697.8426 | N165: 13345.32803 | O165: 185062.7 | P165: 2296.105804 | Q165: 49905.53 | R165: 15745.76 | S165: 9581.70641 | T165: 0 | U165: 2566.28 | W165: 0 | X165: 0 | Y165: 141.5641962 | Z165: 606.1135902 | AC165: 28759.80385 | AD165: 16868.96906 | AE165: 17654.60678 | AF165: 19201.25718 | AG165: 10080.81744 | AH165: 325.7861471 | AI165: 1534.670939 | AJ165: 2320.523222 | AK165: 12907.72282 | AL165: 5287.562559 | AM165: 2051.84 | CG165: 64472.03
A166: 166 | E166: ב) | F166: בחו"ל | J166: 4395491.439 | K166: 132.9375346 | L166: 48216.56049 | M166: 1422209.471 | N166: 49465.62065 | O166: 1341680.71 | P166: 33454.00545 | Q166: 215224.12 | R166: 34971.72 | S166: 295280.924 | T166: 0 | U166: 97192.55 | V166: 0 | W166: 397.93 | X166: 0 | Y166: 2062.574548 | Z166: 18678.69598 | AA166: 429.48 | AB166: 0 | AC166: 197273.6874 | AD166: 91730.39748 | AE166: 67768.13039 | AF166: 138145.2946 | AG166: 37599.05 | AH166: 2234.682644 | AI166: 8345.262516 | AJ166: 8907.449611 | AK166: 92865.85539 | AL166: 19721.35 | AM166: 29722.07 | AN166: 0 | AO166: 0 | AP166: 0 | AQ166: 0 | AR166: 0 | AS166: 0 | AT166: 211.01 | AU166: 4636.05 | AV166: 0 | AW166: 0 | AX166: 0 | AY166: 0 | AZ166: 0 | BA166: 0 | BB166: 0 | BC166: 0 | BD166: 0 | BE166: 0 | BF166: 0 | BG166: 0 | BH166: 0 | BI166: 0 | BJ166: 0 | BK166: 0 | BL166: 0 | BM166: 0 | BN166: 0 | BO166: 0 | BP166: 0 | BQ166: 0 | BR166: 0 | BS166: 0 | BT166: 0 | BU166: 0 | BV166: 0 | BW166: 0 | BX166: 0 | BY166: 0 | BZ166: 0 | CA166: 0 | CB166: 0 | CC166: 0 | CD166: 0 | CE166: 0 | CF166: 0 | CG166: 136933.8494
A167: 167 | F167: (1) | G167: סחיר | J167: 2751344.372 | K167: 88.88279822 | L167: 32237.86892 | M167: 950897.4106 | N167: 33072.99771 | O167: 836973.2 | P167: 0 | Q167: 31870.66 | R167: 28.96 | S167: 292842.0131 | T167: 0 | U167: 74777.5 | V167: 0 | W167: 7.15 | X167: 0 | Y167: 0 | Z167: 18524.41688 | AA167: 3.37 | AB167: 0 | AC167: 133887.2679 | AD167: 63910.74733 | AE167: 39218.77095 | AF167: 95190.97496 | AG167: 15440.67811 | AH167: 1516.652108 | AI167: 5814.342669 | AJ167: 5154.919047 | AK167: 63990.53504 | AL167: 8098.901893 | AM167: 10289.5 | AN167: 0 | AO167: 0 | AP167: 0 | AQ167: 0 | AR167: 0 | AS167: 0 | AT167: 211.01 | AU167: 4636.05 | AV167: 0 | AW167: 0 | AX167: 0 | AY167: 0 | AZ167: 0 | BA167: 0 | BB167: 0 | BC167: 0 | BD167: 0 | BE167: 0 | BF167: 0 | BG167: 0 | BH167: 0 | BI167: 0 | BJ167: 0 | BK167: 0 | BL167: 0 | BM167: 0 | BN167: 0 | BO167: 0 | BP167: 0 | BQ167: 0 | BR167: 0 | BS167: 0 | BT167: 0 | BU167: 0 | BV167: 0 | BW167: 0 | BX167: 0 | BY167: 0 | BZ167: 0 | CA167: 0 | CB167: 0 | CC167: 0 | CD167: 0 | CE167: 0 | CF167: 0 | CG167: 32659.59249
A168: 168 | G168: (א) | H168: חברות ישראליות | J168: 1182786.932 | K168: 38.44598005 | L168: 13944.39071 | M168: 411307.7402 | N168: 14305.62309 | O168: 363462.84 | P168: 0 | Q168: 10745.48 | R168: 1.68 | S168: 144486.0517 | T168: 0 | W168: 4.98 | X168: 0 | Y168: 0 | Z168: 9139.808276 | AC168: 60803.92354 | AD168: 28742.11776 | AE168: 17364.92286 | AF168: 42536.05263 | AG168: 6893.526496 | AH168: 688.7764631 | AI168: 2614.842239 | AJ168: 2282.44714 | AK168: 28594.14737 | AL168: 3615.773504 | AM168: 5033.41 | CG168: 16179.95172
A169: 169 | G169: (ב) | H169: חברות זרות החזקה מתחת ל-10% | J169: 1563010.366 | K169: 50.25651318 | L169: 18228.08144 | M169: 537660.7083 | N169: 18700.28373 | O169: 471805.78 | P169: 0 | Q169: 21074.79 | R169: 27.27 | S169: 147678.3456 | T169: 0 | U169: 74777.5 | W169: 2.15 | X169: 0 | Y169: 0 | Z169: 9341.744404 | AA169: 3.37 | AC169: 72798.1846 | AD169: 35033.83284 | AE169: 21772.41205 | AF169: 52455.43461 | AG169: 8514.820065 | AH169: 824.6454042 | AI169: 3187.237164 | AJ169: 2861.767946 | AK169: 35262.28539 | AL169: 4466.169935 | AM169: 5232.48 | AT169: 211.01 | AU169: 4636.05 | CG169: 16403.75601
A170: 170 | G170: (ג) | H170: חברות זרות החזקה של 10% ומעלה | J170: 5547.074757 | K170: 0.1803049841 | L170: 65.39677599 | M170: 1928.962026 | N170: 67.09089325 | O170: 1704.58 | P170: 0 | Q170: 50.39 | R170: 0.01 | S170: 677.6158034 | T170: 0 | U170: 0 | W170: 0.02 | X170: 0 | Y170: 0 | Z170: 42.8641966 | AC170: 285.1597589 | AD170: 134.7967353 | AE170: 81.43603914 | AF170: 199.4877253 | AG170: 32.33154644 | AH170: 3.230241056 | AI170: 12.26326467 | AJ170: 10.70396086 | AK170: 134.1022747 | AL170: 16.95845356 | AM170: 23.61 | CG170: 75.88475696
A171: 171 | F171: (2) | G171: לא סחיר | J171: 1644147.067 | K171: 44.05473643 | L171: 15978.69157 | M171: 471312.0608 | N171: 16392.62294 | O171: 504707.51 | P171: 33454.00545 | Q171: 183353.46 | R171: 34942.76 | S171: 2438.9109 | T171: 0 | U171: 22415.05 | V171: 0 | W171: 390.78 | X171: 0 | Y171: 2062.574548 | Z171: 154.2791 | AA171: 426.11 | AB171: 0 | AC171: 63386.41946 | AD171: 27819.65015 | AE171: 28549.35944 | AF171: 42954.31965 | AG171: 22158.37189 | AH171: 718.030536 | AI171: 2530.919848 | AJ171: 3752.530565 | AK171: 28875.32035 | AL171: 11622.44811 | AM171: 19432.57 | AN171: 0 | AO171: 0 | AP171: 0 | AQ171: 0 | AR171: 0 | AS171: 0 | AT171: 0 | AU171: 0 | AV171: 0 | AW171: 0 | AX171: 0 | AY171: 0 | AZ171: 0 | BA171: 0 | BB171: 0 | BC171: 0 | BD171: 0 | BE171: 0 | BF171: 0 | BG171: 0 | BH171: 0 | BI171: 0 | BJ171: 0 | BK171: 0 | BL171: 0 | BM171: 0 | BN171: 0 | BO171: 0 | BP171: 0 | BQ171: 0 | BR171: 0 | BS171: 0 | BT171: 0 | BU171: 0 | BV171: 0 | BW171: 0 | BX171: 0 | BY171: 0 | BZ171: 0 | CA171: 0 | CB171: 0 | CC171: 0 | CD171: 0 | CE171: 0 | CF171: 0 | CG171: 104274.2569
A172: 172 | G172: (א) | H172: חברות ישראליות | J172: 0 | K172: 0 | L172: 0 | M172: 0 | N172: 0 | P172: 0 | S172: 0 | T172: 0 | X172: 0 | Y172: 0 | Z172: 0 | AC172: 0 | AD172: 0 | AE172: 0 | AF172: 0 | AG172: 0 | AH172: 0 | AI172: 0 | AJ172: 0 | AK172: 0 | AL172: 0 | CG172: 0
A173: 173 | G173: (ב) | H173: חברות זרות | J173: 1644147.067 | K173: 44.05473643 | L173: 15978.69157 | M173: 471312.0608 | N173: 16392.62294 | O173: 504707.51 | P173: 33454.00545 | Q173: 183353.46 | R173: 34942.76 | S173: 2438.9109 | T173: 0 | U173: 22415.05 | W173: 390.78 | X173: 0 | Y173: 2062.574548 | Z173: 154.2791 | AA173: 426.11 | AC173: 63386.41946 | AD173: 27819.65015 | AE173: 28549.35944 | AF173: 42954.31965 | AG173: 22158.37189 | AH173: 718.030536 | AI173: 2530.919848 | AJ173: 3752.530565 | AK173: 28875.32035 | AL173: 11622.44811 | AM173: 19432.57 | CG173: 104274.2569
A174: 174 | J174: 0 | AC174: 0 | AD174: 0 | AE174: 0 | AF174: 0 | AG174: 0 | AH174: 0 | AI174: 0 | AJ174: 0 | AK174: 0 | AL174: 0 | CG174: 0
A175: 175 | D175: 5) | E175: השקעות בקרנות סל | J175: 12275616.23 | K175: 308.9522077 | L175: 112057.2369 | M175: 3305272.338 | N175: 114960.1032 | O175: 2948588.73 | P175: 31182.91721 | Q175: 303058.19 | R175: 47162.41 | S175: 800786.7902 | T175: 375.1553084 | U175: 606881.6 | V175: 0 | W175: 31395.55 | X175: 25.06469164 | Y175: 1922.552786 | Z175: 50655.66983 | AA175: 13683.39 | AB175: 402589.74 | AC175: 431553.0804 | AD175: 223477.5973 | AE175: 160387.4306 | AF175: 346099.9191 | AG175: 80560.96489 | AH175: 4888.559604 | AI175: 20331.09271 | AJ175: 21081.33939 | AK175: 232659.8609 | AL175: 42255.61511 | AM175: 28438.79 | AN175: 35709.82 | AO175: 1286905.28 | AP175: 42727.35 | AQ175: 141161.49 | AR175: 161146.96 | AS175: 45852.73 | AT175: 1595.38 | AU175: 5381.52 | AV175: 29295.56 | AW175: 0 | AX175: 0 | AY175: 0 | AZ175: 0 | BA175: 0 | BB175: 0 | BC175: 0 | BD175: 0 | BE175: 0 | BF175: 0 | BG175: 0 | BH175: 0 | BI175: 0 | BJ175: 0 | BK175: 0 | BL175: 0 | BM175: 0 | BN175: 0 | BO175: 0 | BP175: 0 | BQ175: 0 | BR175: 0 | BS175: 0 | BT175: 0 | BU175: 0 | BV175: 0 | BW175: 0 | BX175: 0 | BY175: 0 | BZ175: 0 | CA175: 0 | CB175: 0 | CC175: 0 | CD175: 0 | CE175: 0 | CF175: 0 | CG175: 163199.4952
A176: 176 | E176: א) | F176: בישראל | J176: 3732000.347 | K176: 46.45936261 | L176: 16850.8516 | M176: 497037.5426 | N176: 17287.37646 | O176: 483076.28 | P176: 27573.66235 | Q176: 165406.28 | R176: 42843.57 | S176: 95477.38153 | T176: 375.1553084 | U176: 5163.44 | V176: 0 | W176: 27025.26 | X176: 25.06469164 | Y176: 1700.027647 | Z176: 6039.648474 | AA176: 0 | AB176: 221513.9 | AC176: 62628.76208 | AD176: 41859.65683 | AE176: 44688.90589 | AF176: 74760.58301 | AG176: 33618.89167 | AH176: 709.4479225 | AI176: 3808.22317 | AJ176: 5873.914111 | AK176: 50256.54699 | AL176: 17633.68833 | AM176: 3331.78 | AN176: 35709.82 | AO176: 1286905.28 | AP176: 42727.35 | AQ176: 141161.49 | AR176: 161146.96 | AS176: 45852.73 | AT176: 14.57 | AU176: 895.89 | AV176: 0 | AW176: 0 | AX176: 0 | AY176: 0 | AZ176: 0 | BA176: 0 | BB176: 0 | BC176: 0 | BD176: 0 | BE176: 0 | BF176: 0 | BG176: 0 | BH176: 0 | BI176: 0 | BJ176: 0 | BK176: 0 | BL176: 0 | BM176: 0 | BN176: 0 | BO176: 0 | BP176: 0 | BQ176: 0 | BR176: 0 | BS176: 0 | BT176: 0 | BU176: 0 | BV176: 0 | BW176: 0 | BX176: 0 | BY176: 0 | BZ176: 0 | CA176: 0 | CB176: 0 | CC176: 0 | CD176: 0 | CE176: 0 | CF176: 0 | CG176: 70973.95682
A177: 177 | F177: (1) | G177: שמחקות מדדי מניות בארץ | J177: 950878.1252 | K177: 23.3978039 | L177: 8486.40401 | M177: 250317.4021 | N177: 8706.246094 | O177: 221199.52 | P177: 0 | Q177: 6539.58 | R177: 1.03 | S177: 87932.63254 | T177: 0 | W177: 3.02 | X177: 0 | Y177: 0 | Z177: 5562.387462 | AB177: 61165.38 | AC177: 37004.60812 | AD177: 17492.13585 | AE177: 10568.09816 | AF177: 25886.97536 | AG177: 4195.321525 | AH177: 419.1818819 | AI177: 1591.364146 | AJ177: 1389.071844 | AK177: 17402.08464 | AL177: 2200.518475 | AM177: 3063.28 | AR177: 161146.96 | AS177: 8734.58 | CG177: 9846.945221
A178: 178 | F178: (2) | G178: שמחקות מדדי מניות בחו"ל | J178: 1388700 | K178: 2.763291096 | L178: 1002.248106 | M178: 29562.59705 | N178: 1028.211554 | O178: 25883.8 | P178: 0 | Q178: 1250.4 | R178: 1.85 | S178: 7542.76452 | T178: 0 | U178: 5163.44 | W178: 0.06 | X178: 0 | Y178: 0 | Z178: 477.1354796 | AC178: 3906.448419 | AD178: 1889.986621 | AE178: 1183.359158 | AF178: 2840.082328 | AG178: 460.840967 | AH178: 44.25158064 | AI178: 171.943379 | AJ178: 155.5408421 | AK178: 1909.197672 | AL178: 241.719033 | AM178: 268.5 | AO178: 1286905.28 | AS178: 15065.66 | AT178: 14.57 | AU178: 895.89 | CG178: 831.4604238
A179: 179 | F179: (3) | G179: שמחקות מדדי אג"ח בארץ | J179: 1392422.221 | K179: 20.29826762 | L179: 7362.19948 | M179: 217157.5434 | N179: 7552.918809 | O179: 235992.96 | P179: 27573.66235 | Q179: 157616.3 | R179: 42840.69 | S179: 1.984467779 | T179: 375.1553084 | W179: 27022.18 | X179: 25.06469164 | Y179: 1700.027647 | Z179: 0.1255322213 | AB179: 160348.52 | AC179: 21717.70554 | AD179: 22477.53436 | AE179: 32937.44857 | AF179: 46033.52532 | AG179: 28962.72918 | AH179: 246.0144599 | AI179: 2044.915645 | AJ179: 4329.301426 | AK179: 30945.26468 | AL179: 15191.45082 | AN179: 35709.82 | AP179: 42727.35 | AQ179: 141161.49 | AS179: 22052.49 | CG179: 60295.55117
A180: 180 | F180: (4) | G180: שמחקות מדדי אג"ח בחו"ל | J180: 0 | K180: 0 | L180: 0 | M180: 0 | N180: 0 | P180: 0 | S180: 0 | T180: 0 | X180: 0 | Y180: 0 | Z180: 0 | AC180: 0 | AD180: 0 | AE180: 0 | AF180: 0 | AG180: 0 | AH180: 0 | AI180: 0 | AJ180: 0 | AK180: 0 | AL180: 0 | CG180: 0
A181: 181 | F181: (5) | G181: בחסר | J181: 0 | K181: 0 | L181: 0 | M181: 0 | N181: 0 | P181: 0 | S181: 0 | T181: 0 | X181: 0 | Y181: 0 | Z181: 0 | AC181: 0 | AD181: 0 | AE181: 0 | AF181: 0 | AG181: 0 | AH181: 0 | AI181: 0 | AJ181: 0 | AK181: 0 | AL181: 0 | CG181: 0
A182: 182 | F182: (6) | G182: אחר | J182: 0 | K182: 0 | L182: 0 | M182: 0 | N182: 0 | P182: 0 | S182: 0 | T182: 0 | X182: 0 | Y182: 0 | Z182: 0 | AC182: 0 | AD182: 0 | AE182: 0 | AF182: 0 | AG182: 0 | AH182: 0 | AI182: 0 | AJ182: 0 | AK182: 0 | AL182: 0 | CG182: 0
A183: 183 | E183: ב) | F183: בחו"ל | J183: 8543615.878 | K183: 262.492845 | L183: 95206.38528 | M183: 2808234.795 | N183: 97672.72676 | O183: 2465512.45 | P183: 3609.254861 | Q183: 137651.91 | R183: 4318.84 | S183: 705309.4086 | T183: 0 | U183: 601718.16 | V183: 0 | W183: 4370.29 | X183: 0 | Y183: 222.525139 | Z183: 44616.02136 | AA183: 13683.39 | AB183: 181075.84 | AC183: 368924.3183 | AD183: 181617.9405 | AE183: 115698.5247 | AF183: 271339.3361 | AG183: 46942.07323 | AH183: 4179.111681 | AI183: 16522.86954 | AJ183: 15207.42528 | AK183: 182403.3139 | AL183: 24621.92677 | AM183: 25107.01 | AN183: 0 | AO183: 0 | AP183: 0 | AQ183: 0 | AR183: 0 | AS183: 0 | AT183: 1580.81 | AU183: 4485.63 | AV183: 29295.56 | AW183: 0 | AX183: 0 | AY183: 0 | AZ183: 0 | BA183: 0 | BB183: 0 | BC183: 0 | BD183: 0 | BE183: 0 | BF183: 0 | BG183: 0 | BH183: 0 | BI183: 0 | BJ183: 0 | BK183: 0 | BL183: 0 | BM183: 0 | BN183: 0 | BO183: 0 | BP183: 0 | BQ183: 0 | BR183: 0 | BS183: 0 | BT183: 0 | BU183: 0 | BV183: 0 | BW183: 0 | BX183: 0 | BY183: 0 | BZ183: 0 | CA183: 0 | CB183: 0 | CC183: 0 | CD183: 0 | CE183: 0 | CF183: 0 | CG183: 92225.53834
A184: 184 | F184: (1) | G184: שמחקות מדדי מניות | J184: 8240409.017 | K184: 258.390167 | L184: 93718.34035 | M184: 2764342.996 | N184: 96146.13371 | O184: 2420344.94 | P184: 0 | Q184: 116922.47 | R184: 173.17 | S184: 705309.4086 | T184: 0 | U184: 520739.29 | W184: 5.58 | X184: 0 | Y184: 0 | Z184: 44616.02136 | AB184: 142614.19 | AC184: 365284.1634 | AD184: 176728.8594 | AE184: 110653.8299 | AF184: 265570.8524 | AG184: 43092.33651 | AH184: 4137.876628 | AI184: 16078.08062 | AJ184: 14544.3501 | AK184: 178525.5476 | AL184: 22602.67349 | AM184: 25107.01 | AT184: 1362.62 | AU184: 4485.63 | AV184: 29295.56 | CG184: 77748.69668
A185: 185 | F185: (2) | G185: שמחקות מדדים אחרים | J185: 303206.8617 | K185: 4.10267806 | L185: 1488.044933 | M185: 43891.79934 | N185: 1526.593051 | O185: 45167.51 | P185: 3609.254861 | Q185: 20729.44 | R185: 4145.67 | S185: 0 | T185: 0 | U185: 80978.87 | W185: 4364.71 | X185: 0 | Y185: 222.525139 | Z185: 0 | AA185: 13683.39 | AB185: 38461.65 | AC185: 3640.154946 | AD185: 4889.081074 | AE185: 5044.694824 | AF185: 5768.483678 | AG185: 3849.736716 | AH185: 41.23505365 | AI185: 444.7889265 | AJ185: 663.0751755 | AK185: 3877.766322 | AL185: 2019.253284 | AT185: 218.19 | CG185: 14476.84166
A186: 186 | F186: (3) | G186: בחסר | J186: 0 | K186: 0 | L186: 0 | M186: 0 | N186: 0 | P186: 0 | S186: 0 | T186: 0 | X186: 0 | Y186: 0 | Z186: 0 | AC186: 0 | AD186: 0 | AE186: 0 | AF186: 0 | AG186: 0 | AH186: 0 | AI186: 0 | AJ186: 0 | AK186: 0 | AL186: 0 | CG186: 0
A187: 187 | F187: (4) | G187: אחר | J187: 0 | K187: 0 | L187: 0 | M187: 0 | N187: 0 | P187: 0 | S187: 0 | T187: 0 | X187: 0 | Y187: 0 | Z187: 0 | AC187: 0 | AD187: 0 | AE187: 0 | AF187: 0 | AG187: 0 | AH187: 0 | AI187: 0 | AJ187: 0 | AK187: 0 | AL187: 0 | CG187: 0
A188: 188 | AC188: 0 | AD188: 0 | AE188: 0 | AF188: 0 | AG188: 0 | AH188: 0 | AI188: 0 | AJ188: 0 | AK188: 0 | AL188: 0 | CG188: 0
A189: 189 | D189: 6) | E189: תעודות השתתפות בקרנות נאמנות | J189: 2569679.942 | K189: 60.80819282 | L189: 22055.18491 | M189: 650546.0478 | N189: 22626.52912 | O189: 610827.19 | P189: 22078.11504 | Q189: 142921.39 | R189: 25506.63 | S189: 99523.39155 | T189: 0 | U189: 449317.98 | V189: 0 | W189: 26700.19 | X189: 0 | Y189: 1361.20496 | Z189: 6295.588445 | AA189: 32071.66 | AB189: 0 | AC189: 72793.26038 | AD189: 54347.78699 | AE189: 46157.76845 | AF189: 72009.51338 | AG189: 29507.93128 | AH189: 824.5896235 | AI189: 4944.34301 | AJ189: 6066.981549 | AK189: 48407.18662 | AL189: 15477.41872 | AM189: 3478.18 | AN189: 273.91 | AO189: 0 | AP189: 750.97 | AQ189: 1035.75 | AR189: 860.11 | AS189: 0 | AT189: 1521.69 | AU189: 0 | AV189: 0 | AW189: 0 | AX189: 0 | AY189: 0 | AZ189: 0 | BA189: 0 | BB189: 0 | BC189: 0 | BD189: 0 | BE189: 0 | BF189: 0 | BG189: 0 | BH189: 0 | BI189: 0 | BJ189: 0 | BK189: 0 | BL189: 0 | BM189: 0 | BN189: 0 | BO189: 0 | BP189: 0 | BQ189: 0 | BR189: 0 | BS189: 0 | BT189: 0 | BU189: 0 | BV189: 0 | BW189: 0 | BX189: 0 | BY189: 0 | BZ189: 0 | CA189: 0 | CB189: 0 | CC189: 0 | CD189: 0 | CE189: 0 | CF189: 0 | CG189: 99330.64198
A190: 190 | E190: א) | F190: בישראל | J190: 10486.04832 | K190: 0.2418916737 | L190: 87.73432234 | M190: 2587.836688 | N190: 90.00709845 | O190: 2286.81 | P190: 0 | Q190: 67.61 | R190: 123.54 | S190: 909.0649388 | T190: 0 | W190: 0.03 | X190: 0 | Y190: 0 | Z190: 57.50506122 | AC190: 382.5663537 | AD190: 180.8380791 | AE190: 109.258988 | AF190: 267.6241545 | AG190: 43.37110672 | AH190: 4.333646328 | AI190: 16.4519209 | AJ190: 14.36101195 | AK190: 179.9058455 | AL190: 22.74889328 | AM190: 31.67 | AN190: 273.91 | AP190: 750.97 | AQ190: 1035.75 | AR190: 860.11 | CG190: 101.7983169
A191: 191 | E191: ב) | F191: בחו"ל | J191: 2559193.894 | K191: 60.56630115 | L191: 21967.45058 | M191: 647958.2111 | N191: 22536.52202 | O191: 608540.38 | P191: 22078.11504 | Q191: 142853.78 | R191: 25383.09 | S191: 98614.32662 | T191: 0 | U191: 449317.98 | V191: 0 | W191: 26700.16 | X191: 0 | Y191: 1361.20496 | Z191: 6238.083384 | AA191: 32071.66 | AB191: 0 | AC191: 72410.69402 | AD191: 54166.94891 | AE191: 46048.50946 | AF191: 71741.88923 | AG191: 29464.56017 | AH191: 820.2559772 | AI191: 4927.891089 | AJ191: 6052.620537 | AK191: 48227.28077 | AL191: 15454.66983 | AM191: 3446.51 | AN191: 0 | AO191: 0 | AP191: 0 | AQ191: 0 | AR191: 0 | AS191: 0 | AT191: 1521.69 | AU191: 0 | AV191: 0 | AW191: 0 | AX191: 0 | AY191: 0 | AZ191: 0 | BA191: 0 | BB191: 0 | BC191: 0 | BD191: 0 | BE191: 0 | BF191: 0 | BG191: 0 | BH191: 0 | BI191: 0 | BJ191: 0 | BK191: 0 | BL191: 0 | BM191: 0 | BN191: 0 | BO191: 0 | BP191: 0 | BQ191: 0 | BR191: 0 | BS191: 0 | BT191: 0 | BU191: 0 | BV191: 0 | BW191: 0 | BX191: 0 | BY191: 0 | BZ191: 0 | CA191: 0 | CB191: 0 | CC191: 0 | CD191: 0 | CE191: 0 | CF191: 0 | CG191: 99228.84366
A192: 192 | F192: (1) | G192: אג"ח קנצרני | J192: 1457430.042 | K192: 25.09640239 | L192: 9102.487172 | M192: 268489.5674 | N192: 9338.28902 | O192: 276293.19 | P192: 22078.11504 | Q192: 126803.55 | R192: 25359.36 | S192: 1794.645441 | T192: 0 | U192: 383039.57 | W192: 26699.31 | X192: 0 | Y192: 1361.20496 | Z192: 113.5245587 | AA192: 32071.66 | AC192: 22267.12185 | AD192: 29906.89135 | AE192: 30858.75258 | AF192: 35286.25643 | AG192: 23549.12035 | AH192: 252.238154 | AI192: 2720.808654 | AJ192: 4056.077423 | AK192: 23720.59357 | AL192: 12351.91965 | AT192: 1334.64 | CG192: 88556.05213
A193: 193 | F193: (2) | G193: אג"ח ממשלתי | J193: 0 | K193: 0 | L193: 0 | M193: 0 | N193: 0 | P193: 0 | S193: 0 | T193: 0 | X193: 0 | Y193: 0 | Z193: 0 | AC193: 0 | AD193: 0 | AE193: 0 | AF193: 0 | AG193: 0 | AH193: 0 | AI193: 0 | AJ193: 0 | AK193: 0 | AL193: 0 | CG193: 0
A194: 194 | F194: (3) | G194: מניות | J194: 1101763.852 | K194: 35.46989876 | L194: 12864.96341 | M194: 379468.6437 | N194: 13198.233 | O194: 332247.19 | P194: 0 | Q194: 16050.23 | R194: 23.73 | S194: 96819.68117 | T194: 0 | U194: 66278.41 | W194: 0.85 | X194: 0 | Y194: 0 | Z194: 6124.558825 | AC194: 50143.57218 | AD194: 24260.05757 | AE194: 15189.75689 | AF194: 36455.6328 | AG194: 5915.439821 | AH194: 568.0178232 | AI194: 2207.082435 | AJ194: 1996.543114 | AK194: 24506.6872 | AL194: 3102.750179 | AM194: 3446.51 | AT194: 187.05 | CG194: 10672.79153
A195: 195 | F195: (4) | G195: אחר | J195: 0 | K195: 0 | L195: 0 | M195: 0 | N195: 0 | P195: 0 | S195: 0 | T195: 0 | X195: 0 | Y195: 0 | Z195: 0 | AC195: 0 | AD195: 0 | AE195: 0 | AF195: 0 | AG195: 0 | AH195: 0 | AI195: 0 | AJ195: 0 | AK195: 0 | AL195: 0 | CG195: 0
A196: 196 | AC196: 0 | AD196: 0 | AE196: 0 | AF196: 0 | AG196: 0 | AH196: 0 | AI196: 0 | AJ196: 0 | AK196: 0 | AL196: 0 | CG196: 0
A197: 197 | D197: 7) | E197: קרנות השקעה | J197: 10959104.59 | K197: 307.552168 | L197: 111549.4413 | M197: 3290294.253 | N197: 114439.1531 | O197: 3488459.63 | P197: 44864.14431 | Q197: 904712.65 | R197: 239796.34 | S197: 317916.8733 | T197: 0 | U197: 111198.04 | V197: 0 | W197: 2001.77 | X197: 0 | Y197: 2766.055691 | Z197: 20110.5867 | AA197: 3421.94 | AB197: 0 | AC197: 467624.549 | AD197: 196080.9445 | AE197: 255804.6695 | AF197: 267025.9724 | AG197: 95894.49433 | AH197: 5297.17104 | AI197: 17838.65547 | AJ197: 33622.9905 | AK197: 179503.7276 | AL197: 50298.31567 | AM197: 72058.71 | AN197: 0 | AO197: 0 | AP197: 0 | AQ197: 0 | AR197: 0 | AS197: 0 | AT197: 0 | AU197: 0 | AV197: 0 | AW197: 0 | AX197: 0 | AY197: 0 | AZ197: 0 | BA197: 0 | BB197: 0 | BC197: 0 | BD197: 0 | BE197: 0 | BF197: 0 | BG197: 0 | BH197: 0 | BI197: 0 | BJ197: 0 | BK197: 0 | BL197: 0 | BM197: 0 | BN197: 0 | BO197: 0 | BP197: 0 | BQ197: 0 | BR197: 0 | BS197: 0 | BT197: 0 | BU197: 0 | BV197: 0 | BW197: 0 | BX197: 0 | BY197: 0 | BZ197: 0 | CA197: 0 | CB197: 0 | CC197: 0 | CD197: 0 | CE197: 0 | CF197: 0 | CG197: 666215.96
A198: 198 | E198: א) | F198: בישראל | J198: 1835314.88 | K198: 73.15071499 | L198: 26531.82853 | M198: 782590.4096 | N198: 27219.14114 | O198: 561947.38 | P198: 5202.024199 | Q198: 120737.01 | R198: 27742.07 | S198: 45960.01041 | T198: 0 | U198: 5802.18 | V198: 0 | W198: 178.37 | X198: 0 | Y198: 320.7258015 | Z198: 2907.309588 | AA198: 0 | AB198: 0 | AC198: 38434.81696 | AD198: 16297.26995 | AE198: 18583.24631 | AF198: 21293.81219 | AG198: 5945.882245 | AH198: 435.3830434 | AI198: 1482.660053 | AJ198: 2442.583692 | AK198: 14314.40781 | AL198: 3118.717755 | AM198: 5278.72 | AN198: 0 | AO198: 0 | AP198: 0 | AQ198: 0 | AR198: 0 | AS198: 0 | AT198: 0 | AU198: 0 | AV198: 0 | AW198: 0 | AX198: 0 | AY198: 0 | AZ198: 0 | BA198: 0 | BB198: 0 | BC198: 0 | BD198: 0 | BE198: 0 | BF198: 0 | BG198: 0 | BH198: 0 | BI198: 0 | BJ198: 0 | BK198: 0 | BL198: 0 | BM198: 0 | BN198: 0 | BO198: 0 | BP198: 0 | BQ198: 0 | BR198: 0 | BS198: 0 | BT198: 0 | BU198: 0 | BV198: 0 | BW198: 0 | BX198: 0 | BY198: 0 | BZ198: 0 | CA198: 0 | CB198: 0 | CC198: 0 | CD198: 0 | CE198: 0 | CF198: 0 | CG198: 100475.77
A199: 199 | F199: (1) | G199: קרנות הון סיכון | J199: 145558.14 | K199: 5.755884361 | L199: 2087.66431 | M199: 61578.34411 | N199: 2141.745693 | O199: 38823.63 | P199: 0 | Q199: 6370.42 | R199: 1677.99 | S199: 4636.986414 | T199: 0 | U199: 1276.33 | X199: 0 | Y199: 0 | Z199: 293.3235859 | AC199: 5624.635094 | AD199: 2500.339199 | AE199: 1940.597656 | AF199: 2735.521554 | AG199: 385.7549025 | AH199: 63.7149059 | AI199: 227.470801 | AJ199: 255.0723436 | AK199: 1838.908446 | AL199: 202.3350975 | AM199: 1248.18 | CG199: 9643.42
A200: 200 | F200: (2) | G200: קרנות גידור | J200: 347638.52 | K200: 13.47734956 | L200: 4888.246515 | M200: 144185.1186 | N200: 5014.877571 | O200: 124916.69 | P200: 1591.337609 | Q200: 17950.22 | R200: 3308.72 | S200: 15870.45659 | T200: 0 | U200: 298.27 | W200: 178.37 | X200: 0 | Y200: 98.11239062 | Z200: 1003.923415 | AC200: 6233.942959 | AD200: 1914.03848 | AE200: 2459.98883 | AF200: 2662.206421 | AG200: 1156.575965 | AH200: 70.61704134 | AI200: 174.1315204 | AJ200: 323.3411697 | AK200: 1789.623579 | AL200: 606.6440351 | AM200: 418.25 | CG200: 10511.34
A201: 201 | F201: (3) | G201: קרנות נדל"ן | J201: 94128.08 | K201: 0.9576262764 | L201: 347.3318909 | M201: 10245.00089 | N201: 356.3295968 | O201: 38500.98 | P201: 654.1679065 | Q201: 14764.58 | R201: 2754.22 | S201: 0 | T201: 0 | U201: 330.79 | X201: 0 | Y201: 40.33209346 | Z201: 0 | AC201: 5087.875416 | AD201: 2010.053426 | AE201: 2222.309433 | AF201: 2340.474981 | AG201: 1598.335482 | AH201: 57.63458392 | AI201: 182.8665739 | AJ201: 292.1005668 | AK201: 1573.345019 | AL201: 838.3545184 | AM201: 738.69 | CG201: 9191.35
A202: 202 | F202: (4) | G202: קרנות השקעה אחרות | J202: 1247990.14 | K202: 52.95985479 | L202: 19208.58581 | M202: 566581.9461 | N202: 19706.18828 | O202: 359706.08 | P202: 2956.518683 | Q202: 81651.79 | R202: 20001.14 | S202: 25452.56741 | T202: 0 | U202: 3896.79 | X202: 0 | Y202: 182.2813174 | Z202: 1610.062587 | AC202: 21488.36349 | AD202: 9872.838842 | AE202: 11960.35039 | AF202: 13555.60924 | AG202: 2805.215896 | AH202: 243.4165123 | AI202: 898.1911578 | AJ202: 1572.069612 | AK202: 9112.530764 | AL202: 1471.384104 | AM202: 2873.6 | CG202: 71129.66
... 334 more rows
